Cogmind - Beta 16.1 @@@ ROGUE MODE // 2026.05.02 @ 16:03:48 Player: Thqwib-Linux Result: Destroyed by G-73 Enforcer with Heavy Laser Performance ------------- Evolutions (8) 4000 Regions Visited (32) 6400 Robots Destroyed (208) 1040 Value Destroyed (5906) 5906 Prototype IDs (73) 1460 Alien Tech Used (4) 800 Bonus (3855) 3855 TOTAL SCORE: 23461 Bonus ------- High Alert Combat Kills 108 Follower Combat Kills 515 Registered with UFD 300 Met Optimus in HQ 500 Met Zhirov 300 Met Warlord at Base 500 MAIN.C Attacked Warlord 500 Warlord Defense Kills 300 Met Optimus at Protoforge 1000 Friendly Fire -168 Cogmind --------- Core Integrity 0/1450 Matter 300/300 Energy 99/100 System Corruption 2% Temperature Cool (0) Movement Core (50) Location -2/Protoforge Parts ------- > --- POWER (1) -------- (None) > --- PROPULSION (7) --- (None) > --- UTILITY (13) ----- Experimental Optical Array Advanced Signal Interpreter Experimental Core Analyzer Experimental Core Analyzer > --- WEAPON (2) ------- (None) > --- INVENTORY (5) ---- (None) Peak State ------------ > --- POWER ------------ Heavy Antimatter Reactor > --- PROPULSION ------- Cooled Field Propulsion Drive Cooled Impulse Thruster Cooled Impulse Thruster Cooled Q-thruster Cooled Q-thruster Experimental Surge Thruster Experimental Surge Thruster > --- UTILITY ---------- Experimental Heat Sink Medium Storage Unit Experimental Optical Array Advanced Signal Interpreter Experimental Core Analyzer Experimental Core Analyzer Experimental Armor Integrity Analyzer Stasis Canceller Hacking Suite Improved Hacking Suite Advanced System Shield Improved System Restoration Module > --- WEAPON ----------- Sigix Broadsword > --- INVENTORY -------- UFD Drillbomb [Rating: 189] Favorites ----------- Power Light Neutrino Core Engine Cooled Ion Engine Power Core Light Neutrino Core Reactor Heavy Antimatter Reactor Propulsion Improved VTOL Module Treads Light Treads Leg Aluminum Leg Wheel Compact Wheel Hover Unit Aerolev Unit Flight Unit Improved VTOL Module Utility Core Analyzer Device Cooling System Storage Medium Storage Unit Processor Core Analyzer Hackware Hacking Suite Protection Improved Light Armor Plating Artifact Phase Redirector Weapon Vortex Lance Energy Gun Precision Beam Rifle Energy Cannon Beam Cannon Ballistic Gun Heavy Assault Rifle Ballistic Cannon Improved Light Cannon Launcher Mini Grenade Launcher Special Weapon Plasma Cutter Slashing Weapon Chainsword Piercing Weapon Vortex Lance Special Melee Weapon Improved Datajack Build | -11 -10 -10 -9 -9 -8 -8 -8 -8 -6 -6 -6 -6 -5 -5 -5 -5 -5 -5 -5 -4 -4 -4 -4 -4 -4 -4 -3 -3 -3 -2 -2 -2 ------- Run | Yrd Mat Min Mat Min Mat Sto Rec Scr Fac Low Low Zio Pro Fac Was Fac Upp Upp War Pro Fac Was Fac Upp Upp Zhi Pro Res Qua Res Tes Frg Slots Evolved 16 | . . . 2 . 2 . . . 4 . . . . 2 . . . . . . 2 . . . . . . 2 . 2 . . Power . | . . . . . . . . . . . . . . . . . . . . . . . . . . . . . . . . . Propulsion 5 | . . . 1 . 1 . . . 1 . . . . 1 . . . . . . 1 . . . . . . . . . . . Utility 11 | . . . 1 . 1 . . . 3 . . . . 1 . . . . . . 1 . . . . . . 2 . 2 . . Weapon . | . . . . . . . . . . . . . . . . . . . . . . . . . . . . . . . . . Parts Attached 193 | 5 19 3 32 1 14 24 . . 13 1 3 3 1 9 4 2 . . 11 . 6 1 5 . . 3 1 3 4 5 3 17 Power 17 | . 2 1 6 . 1 2 . . 1 . 1 . . 2 . . . . . . . . . . . 1 . . . . . . Engine 10 | . 2 1 3 . 1 2 . . . . 1 . . . . . . . . . . . . . . . . . . . . . Core 6 | . . . 3 . . . . . 1 . . . . 2 . . . . . . . . . . . . . . . . . . Reactor 1 | . . . . . . . . . . . . . . . . . . . . . . . . . . 1 . . . . . . Propulsion 56 | 3 8 1 10 . 8 9 . . 4 . . . . 1 . . . . 2 . 2 . 1 . . . . 1 1 1 2 2 Treads 20 | 1 2 1 6 . 5 5 . . . . . . . . . . . . . . . . . . . . . . . . . . Leg . | . . . . . . . . . . . . . . . . . . . . . . . . . . . . . . . . . Wheel 17 | 2 6 . 4 . 3 2 . . . . . . . . . . . . . . . . . . . . . . . . . . Hover 1 | . . . . . . 1 . . . . . . . . . . . . . . . . . . . . . . . . . . Flight 18 | . . . . . . 1 . . 4 . . . . 1 . . . . 2 . 2 . 1 . . . . 1 1 1 2 2 Utility 76 | 1 4 1 6 1 3 6 . . 7 1 2 2 . 4 2 2 . . 6 . 2 . 2 . . 2 1 2 2 4 1 12 Device 31 | 1 1 1 3 1 1 2 . . . . . 1 . 2 2 1 . . 3 . . . 1 . . . 1 1 1 2 . 6 Storage 4 | . 2 . . . . . . . 1 . . . . . . . . . . . . . . . . 1 . . . . . . Processor 18 | . . . . . 1 1 . . 2 1 . 1 . 1 . . . . 2 . . . . . . . . 1 . 2 1 5 Hackware 6 | . . . . . . . . . 2 . . . . 1 . 1 . . . . 2 . . . . . . . . . . . Protection 16 | . 1 . 3 . 1 3 . . 2 . 2 . . . . . . . 1 . . . 1 . . 1 . . . . . 1 Artifact 1 | . . . . . . . . . . . . . . . . . . . . . . . . . . . . . 1 . . . Weapon 44 | 1 5 . 10 . 2 7 . . 1 . . 1 1 2 2 . . . 3 . 2 1 2 . . . . . 1 . . 3 Energy Gun 7 | . 1 . 2 . . 3 . . . . . . . . . . . . 1 . . . . . . . . . . . . . Energy Cannon 6 | . 1 . 1 . . . . . . . . . . 1 . . . . . . 2 . 1 . . . . . . . . . Ballistic Gun 14 | 1 3 . 6 . 2 . . . . . . . . . . . . . . . . . . . . . . . . . . 2 Ballistic Cannon 3 | . . . 1 . . 2 . . . . . . . . . . . . . . . . . . . . . . . . . . Launcher 5 | . . . . . . 2 . . . . . 1 . . 1 . . . . . . 1 . . . . . . . . . . Special Weapon 1 | . . . . . . . . . . . . . . . . . . . 1 . . . . . . . . . . . . . Impact Weapon . | . . . . . . . . . . . . . . . . . . . . . . . . . . . . . . . . . Slashing Weapon 6 | . . . . . . . . . 1 . . . 1 1 . . . . . . . . 1 . . . . . 1 . . 1 Piercing Weapon 1 | . . . . . . . . . . . . . . . . . . . 1 . . . . . . . . . . . . . Special Melee Weapon 1 | . . . . . . . . . . . . . . . 1 . . . . . . . . . . . . . . . . . Unidentified Prototypes 39 | . . 1 2 1 . 6 . . . . . 2 . 2 1 . . . 6 . 2 1 . . . 4 . . 2 . 1 8 Parts Lost 40 | . 4 . 4 . 2 5 . . 1 . 4 . . . . . . . . . 2 . . . . . . . . . . 18 Power 5 | . . . 2 . . 1 . . 1 . 1 . . . . . . . . . . . . . . . . . . . . . Propulsion 16 | . 3 . 2 . 1 . . . . . . . . . . . . . . . 2 . . . . . . . . . . 8 Utility 16 | . . . . . 1 3 . . . . 3 . . . . . . . . . . . . . . . . . . . . 9 Weapon 3 | . 1 . . . . 1 . . . . . . . . . . . . . . . . . . . . . . . . . 1 Highest Loss Streak 9 | . 2 . 1 . 1 2 . . 1 . 2 . . . . . . . . . 2 . . . . . . . . . . 9 To Critical Strikes 1 | . . . . . . . . . . . . . . . . . . . . . . . . . . . . . . . . 1 Average Backups 12 | 4 6 12 16 20 19 19 19 17 9 9 8 9 10 9 9 9 10 10 9 10 9 10 8 9 9 8 9 7 8 8 7 2 Power . | 1 1 . . 1 1 1 1 1 . . . . . . 1 1 1 1 1 1 1 1 1 1 1 . . . . . . . Propulsion 3 | 2 2 5 7 9 7 7 6 6 1 1 1 1 1 . . . . . . . . . . . . . . . . . 1 . Utility 4 | . 1 2 1 3 4 4 4 6 5 6 5 6 7 5 5 5 6 6 5 6 6 7 5 6 6 6 6 4 5 4 4 1 Weapon 3 | 1 1 4 5 6 5 5 7 3 1 1 1 1 1 1 2 2 2 2 2 2 1 2 2 2 2 2 2 2 2 1 2 . Tool/Special . | . . . . . . . . . . . . . . . . . . . . . . . . . . . . . . . . . Unused Backups 46 | 4 9 . 8 . 1 9 . 6 . . . 1 . 3 . 1 . . . 1 . 1 1 . . 1 . . . . . . Power 8 | . 4 . . . . 1 . 1 . . . . . . . . . . . 1 . . . . . 1 . . . . . . Propulsion 16 | 4 1 . 4 . 1 6 . . . . . . . . . . . . . . . . . . . . . . . . . . Utility 11 | . 2 . . . . 2 . . . . . 1 . 3 . 1 . . . . . 1 1 . . . . . . . . . Weapon 11 | . 2 . 4 . . . . 5 . . . . . . . . . . . . . . . . . . . . . . . . Tool/Special . | . . . . . . . . . . . . . . . . . . . . . . . . . . . . . . . . . Average Slot Usage (%) 94 | . 98 100 98 98 98 98 100 100 89 93 83 84 86 92 98 99 100 100 99 100 89 88 89 92 94 94 93 94 89 86 90 82 Engine 5 | . 14 14 8 11 8 8 9 9 . . . 6 6 1 . . . . . . . . . . . . . . . . . . Core 1 | . . . 2 . . . . . 5 6 . . . 3 5 5 5 5 5 5 4 5 5 5 5 3 . . . . . . Treads 7 | . 14 14 12 11 17 18 18 18 1 . . . . . . . . . . . . . . . . . . . . . . . Wheel 8 | . 12 14 20 22 17 18 18 18 1 . . . . . . . . . . . . . . . . . . . . . . . Flight 15 | . . . . . . . . . 28 33 33 33 33 35 35 35 35 35 35 35 27 26 26 31 31 31 31 28 27 26 26 25 Device 8 | . 12 14 11 10 13 8 9 9 2 . . . . 9 11 6 5 5 4 4 4 5 4 5 5 4 4 9 9 13 11 11 Storage 7 | . 14 14 11 11 9 9 9 9 5 6 6 6 6 5 5 5 5 5 5 5 5 5 5 5 5 5 5 4 4 4 4 3 Processor 12 | . . . . . 3 6 9 9 16 20 20 24 26 27 23 23 23 23 23 23 21 21 21 21 21 21 21 22 23 21 21 21 Hackware 5 | . . . . . . . . . 10 13 11 . . . 5 9 11 11 11 11 14 15 15 15 15 15 15 14 14 13 13 11 Protection 4 | . 1 . 9 10 9 11 9 9 6 6 5 6 6 . . . . . . . . . . . . . . . . . 3 1 Energy Gun 2 | . 3 . 1 . . 3 18 18 1 . . . . . . . . . . . . . . . . . . . . . . . Energy Cannon 2 | . 9 14 10 . . . . . . . . . . . . . . . . . . . . . . . . . . . . . Ballistic Gun 4 | . 14 14 10 22 18 3 . . . . . . . . . . . . . . . . . . . . . . . . . . Slashing Weapon 2 | . . . . . . . . . 5 6 5 6 4 4 5 4 5 4 4 3 4 4 4 4 5 5 4 3 3 3 4 3 Peak Build Rating 189 | 7 8 16 19 30 22 31 31 31 55 51 51 58 55 76 82 80 78 81 99 99 113 120 119 124 119 121 126 132 148 161 174 189 Average Rating 61 | 6 7 8 16 18 21 25 30 30 47 50 47 50 51 72 76 77 78 78 92 96 105 112 113 119 119 118 121 130 142 154 162 160 On Entrance 73 | 6 7 8 9 19 19 22 30 31 30 51 51 46 52 51 74 77 78 78 78 89 96 112 113 119 119 119 116 121 131 148 161 161 Avg Prop Armor Cover (%) 8 | 13 11 12 9 8 13 14 15 15 15 . 6 . . 2 9 2 . 2 2 3 6 . 9 8 11 11 1 2 . . . . Naked Turns . | . . . . . . . . . . . . . . . . . . . . . . . . . . . . . . . . . Heaviest Build 62 | 14 51 31 62 59 61 62 58 58 58 21 25 25 25 29 24 30 23 31 34 34 30 26 33 31 27 40 41 45 45 48 62 57 Greatest Support 63 | 16 40 20 32 32 32 32 32 32 32 25 25 25 25 30 30 30 30 30 40 34 44 41 59 42 47 47 59 59 60 62 62 63 Greatest Overweight (x) 7 | 1 5 1 3 1 1 1 1 1 2 . . . . . 7 . . 1 . . . . . . . . . . . . . 1 Average Overweight (x) . | . . 1 1 1 1 1 1 1 . . . . . . . . . . . . . . . . . . . . . . . . Largest Inventory Capacity 20 | 8 20 15 20 20 20 20 20 20 20 10 10 10 10 10 10 10 10 10 10 10 10 10 10 10 10 10 10 10 10 10 10 10 Average Capacity 14 | 8 11 15 19 20 20 20 20 20 11 10 10 10 10 10 10 10 10 10 10 10 10 10 10 10 10 10 10 10 10 10 10 9 Most Carried 20 | 6 12 15 20 20 20 20 20 20 20 10 10 10 10 10 10 10 10 10 10 10 10 10 10 10 10 10 10 10 10 10 10 10 Average Carried 12 | 4 6 12 16 20 19 19 19 17 9 9 8 9 10 9 9 9 10 10 9 10 9 9 9 9 10 9 9 8 9 9 8 5 Final Capacity 20 | 8 15 15 20 20 20 20 20 20 10 10 10 10 10 10 10 10 10 10 10 10 10 10 10 10 10 10 10 10 10 10 10 5 Final Carried 20 | 4 12 15 20 20 19 20 20 17 10 9 8 10 10 10 9 10 10 10 10 10 10 10 10 10 10 10 10 10 10 9 10 . Class Distribution -------------------- 25% | Scavenger-Mutant 24% | Mutant 18% | Hacker-Scout 10% | Hacker-Ninja 8% | Hacker-Sprinter 4% | Sprinter Dominant Class ---------------- Mutant | -10/Materials Mutant | -10/Mines Scavenger-Mutant | -9/Materials Scavenger-Mutant | -9/Mines Scavenger-Mutant | -8/Materials Scavenger-Mutant | -8/Storage Mutant | -8/Recycling Mutant | -8/Scraptown Hacker-Sprinter | -6/Factory Hacker-Sprinter | -6/Lower Caves Hacker-Sprinter | -6/Lower Caves Sprinter | -6/Zion Sprinter | -5/Proximity Caves Scout | -5/Factory Assassin | -5/Waste Hacker-Scout | -5/Factory Hacker-Scout | -5/Upper Caves Hacker-Scout | -5/Upper Caves Hacker-Scout | -5/Warlord Hacker-Scout | -4/Proximity Caves Hacker-Scout | -4/Factory Hacker-Scout | -4/Waste Hacker-Scout | -4/Factory Hacker-Scout | -4/Upper Caves Hacker-Scout | -4/Upper Caves Hacker-Scout | -4/Zhirov Hacker-Scout | -3/Proximity Caves Hacker-Ninja | -3/Research Hacker-Ninja | -3/Quarantine Hacker-Ninja | -2/Research Hacker-Ninja | -2/Testing Hacker-Sprinter | -2/Protoforge Resources | -11 -10 -10 -9 -9 -8 -8 -8 -8 -6 -6 -6 -6 -5 -5 -5 -5 -5 -5 -5 -4 -4 -4 -4 -4 -4 -4 -3 -3 -3 -2 -2 -2 ----------- Run | Yrd Mat Min Mat Min Mat Sto Rec Scr Fac Low Low Zio Pro Fac Was Fac Upp Upp War Pro Fac Was Fac Upp Upp Zhi Pro Res Qua Res Tes Frg Matter Collected 6711 | 264 447 96 718 72 757 1078 4 . 130 . 330 30 83 105 192 90 50 67 318 20 275 . 160 135 64 38 295 . 141 169 110 473 Remotely . | . . . . . . . . . . . . . . . . . . . . . . . . . . . . . . . . . Salvage Created 9410 | 115 1097 154 1836 83 1232 1388 52 . 371 . 191 . 41 105 . 411 145 . 47 17 471 . 337 49 . 38 252 . 141 263 . 574 Parts 485 | 5 58 16 111 . 70 72 1 . 22 . 8 . . 6 . 7 2 . 1 . 17 . 9 6 . 3 6 . 6 12 . 47 Haulers Intercepted 24 | . 2 . 6 . 2 6 . . . . . . . 1 . 1 . . . . 3 . 3 . . . . . . . . . Recyclers Shooed 9 | 1 . . 3 1 . 1 . . . . . . . . . 1 . . . . . . . . . . . . 1 1 . . Parts Field Recycled . | . . . . . . . . . . . . . . . . . . . . . . . . . . . . . . . . . Retrieved Matter . | . . . . . . . . . . . . . . . . . . . . . . . . . . . . . . . . . Parts Self-Destructed 20 | . . . . . . . . . . . 3 . 4 . . . . . . . . . . 5 . 3 5 . . . . . Prevented 5 | . . . . . . . . . . . . . . . . . . . . . . . . 5 . . . . . . . . Parts Restored 2 | . . . . . . . . . . . . . . . 1 1 . . . . . . . . . . . . . . . . Broken 2 | . . . . . . . . . . . . . . . 1 1 . . . . . . . . . . . . . . . . Kills | -11 -10 -10 -9 -9 -8 -8 -8 -8 -6 -6 -6 -6 -5 -5 -5 -5 -5 -5 -5 -4 -4 -4 -4 -4 -4 -4 -3 -3 -3 -2 -2 -2 ------- Run | Yrd Mat Min Mat Min Mat Sto Rec Scr Fac Low Low Zio Pro Fac Was Fac Upp Upp War Pro Fac Was Fac Upp Upp Zhi Pro Res Qua Res Tes Frg Combat Hostiles Destroyed 124 | . 14 5 29 . 17 28 1 . 6 . 1 . 1 . . . . . 3 2 . . . 5 . . 6 . . . . 6 Melee 11 | . . . . . . . . . . . 1 . 1 . . . . . . 2 . . . . . . 1 . . . . 6 Guns 52 | . 11 1 17 . 17 6 . . . . . . . . . . . . . . . . . . . . . . . . . . Cannons 34 | . 3 4 11 . . 16 . . . . . . . . . . . . . . . . . . . . . . . . . . AOE 25 | . . . . . . 5 1 . 6 . . . . . . . . . 3 . . . . 5 . . 5 . . . . . Classes Destroyed 17 | 2 5 2 1 . 1 1 . . . . 3 . . . . . . . . 1 . . . . . . . . . . . 1 Worker 12 | . 4 . 3 . 3 1 . . . . . . . . . . . . . . . . . . . . . . . 1 . . Builder 7 | . . 1 1 . . 1 . . 1 . . . . . . . . . . . . . . . . . . . 2 1 . . Tunneler 2 | 1 . 1 . . . . . . . . . . . . . . . . . . . . . . . . . . . . . . Hauler 24 | . 2 . 6 . 2 6 . . . . . . . 1 . 1 . . . . 3 . 3 . . . . . . . . . Recycler 22 | 1 3 . 3 1 3 4 . . 2 . . . . . . 2 . . . . 1 . . . . . . . 1 1 . . Minesweeper 1 | . . . . . . . . . . . 1 . . . . . . . . . . . . . . . . . . . . . Operator 8 | . 1 . 1 . 2 . . . . . . . . 1 . . . . . . 1 . 1 . . . . . . . . 1 Drone 3 | . . . . . . . . . . . . . . . . . . . . 2 . . . . . . 1 . . . . . Watcher 8 | . 1 . 1 . 1 . . . . . . . . . . . . . . . . . 1 . . . . . . 2 . 2 Swarmer 29 | . . 3 6 . 3 5 . . 6 . . . . . . . . . . . . . . 5 . . 1 . . . . . Grunt 58 | . 14 2 15 . 7 14 . . . . . . . . . . . . 3 . . . . . . . 3 . . . . . Duelist 2 | . . . . . . 1 . . . . . . . . . . . . . . . . . . . . 1 . . . . . Sentry 24 | . . . 8 . 6 8 1 . . . . . . . . . . . . . . . . . . . . . . . . 1 Hunter 1 | . . . . . 1 . . . . . . . . . . . . . . . . . . . . . . . . . . . Programmer 6 | . . . . . . . . . . . 1 . 1 . . . . . . . . . . . . . . . . . . 4 Executioner 1 | . . . . . . . . . . . . . . . . . . . . . . . . . . . . . . . . 1 Decomposer 2 | . . . . . . . . . . . 1 . . . . . . . . . . . . . . . 1 . . . . . Packrat 2 | . . . . . . . . . . . . . . . . . 2 . . . . . . . . . . . . . . . Samaritan 2 | . . . . . . . . . . . 2 . . . . . . . . . . . . . . . . . . . . . Best Kill Streak 10 | 2 4 3 6 1 5 10 1 . 4 . 2 . 1 1 . 2 . . 3 2 2 . 2 5 . . 5 . 1 2 . 2 Combat Bots Only 8 | . 3 3 4 . 4 8 1 . 3 . 1 . 1 . . . . . 3 2 . . . 5 . . 5 . . . . 2 Max Kills in Single Turn 4 | 1 1 1 1 1 1 3 1 . 3 . 1 . 1 1 . 1 1 . 2 1 1 . 1 4 . . 3 . 1 1 . 1 Gunslinging . | . . . . . . . . . . . . . . . . . . . . . . . . . . . . . . . . . Exploded 4 | . . . . . . 1 1 . 2 . . . . . . . . . 2 . . . . 4 . . 3 . . . . . Melee 1 | . . . . . . . . . . . 1 . 1 . . . . . . 1 . . . . . . 1 . . . . 1 Uniques/NPCs Destroyed . | . . . . . . . . . . . . . . . . . . . . . . . . . . . . . . . . . Combat | -11 -10 -10 -9 -9 -8 -8 -8 -8 -6 -6 -6 -6 -5 -5 -5 -5 -5 -5 -5 -4 -4 -4 -4 -4 -4 -4 -3 -3 -3 -2 -2 -2 -------- Run | Yrd Mat Min Mat Min Mat Sto Rec Scr Fac Low Low Zio Pro Fac Was Fac Upp Upp War Pro Fac Was Fac Upp Upp Zhi Pro Res Qua Res Tes Frg Hostile Shots Fired 984 | . 94 19 119 . 102 131 2 . 26 . 52 . 8 . . . . 3 108 . 2 . 4 . . . 10 1 6 11 38 248 Missed 397 | . 20 5 27 . 26 41 . . 11 . 21 . 5 . . . . 2 51 . 2 . 3 . . . 6 1 6 8 25 137 Hits 587 | . 74 14 92 . 76 90 2 . 15 . 31 . 3 . . . . 1 57 . . . 1 . . . 4 . . 3 13 111 Melee 3 | . . . . . . 2 . . . . . . . . . . . . . . . . . . . . . . . . . 1 Projectile 584 | . 74 14 92 . 76 88 2 . 15 . 31 . 3 . . . . 1 57 . . . 1 . . . 4 . . 3 13 110 AOE 1 | . . . . . . . . . . . . . . . . . . . . . 1 . . . . . . . . . . . Critical Strikes 26 | . . 1 6 . . 4 . . . . . . . . . . . . . . . . . . . . . . . . 2 13 Part Disruptions 1 | . . . . . . . . . . . . . . . . . . . . . . . . . . . . . . . 1 . Damage Taken 9212 | . 878 158 1200 . 802 1312 41 . 230 . 474 . . . . . . 15 157 60 271 . . . . . 89 . . 51 322 3152 Core 2315 | . 145 24 197 . 74 144 15 . 79 . 177 . . . . . . . 25 20 26 . . . . . 23 . . . 32 1334 Absorbed by Shields 303 | . . . . . 218 85 . . . . . . . . . . . . . . . . . . . . . . . . . . Redirected to Core 32 | . . . . . . . . . . . . . . . . . . . . . . . . . . . . . . . 32 . Redirected to Shielding 114 | . . . . . . 104 . . . . 10 . . . . . . . . . . . . . . . . . . . . . Regen/Repaired (Parts) 927 | . . . 57 . 74 11 . . 17 . . . . . 11 . . . . . 151 7 18 . . . . . 42 23 131 385 Core Remaining (%) 74 | 100 . 32 . 50 . . . 57 . . . . 69 . . . . . . 95 . . . . . . 95 . 100 . . . Volleys Fired 501 | 8 80 17 112 2 73 116 1 . 5 . 11 . 12 1 . 11 . 2 3 5 1 . 15 4 . . 4 4 11 3 . . Largest 2 | 2 2 2 2 2 2 2 2 . 1 . 1 . 1 1 . 1 . 1 1 1 1 . 1 1 . . 1 1 1 1 . . Hottest 106 | 60 85 80 100 46 46 106 106 . 30 . 30 . 30 90 . 90 . 49 49 49 90 . 105 55 . . 55 105 105 105 . . Shots Fired 893 | 16 160 34 224 4 146 215 2 . 5 . 11 . 12 1 . 11 . 2 3 5 1 . 15 4 . . 4 4 11 3 . . Gun 508 | 16 132 17 112 4 146 79 2 . . . . . . . . . . . . . . . . . . . . . . . . . Cannon 330 | . 28 17 112 . . 127 . . . . . . . 1 . 11 . . . . 1 . 15 . . . . 4 11 3 . . Launcher 55 | . . . . . . 9 . . 5 . 11 . 12 . . . . 2 3 5 . . . 4 . . 4 . . . . . Special . | . . . . . . . . . . . . . . . . . . . . . . . . . . . . . . . . . Kinetic 531 | 8 90 17 93 4 146 173 . . . . . . . . . . . . . . . . . . . . . . . . . . Thermal 294 | 8 70 17 131 . . 21 1 . . . . . . 1 . 11 . . . . 1 . 15 . . . . 4 11 3 . . Explosive 55 | . . . . . . 9 . . 5 . 11 . 12 . . . . 2 3 5 . . . 4 . . 4 . . . . . Electromagnetic 13 | . . . . . . 12 1 . . . . . . . . . . . . . . . . . . . . . . . . . Robot Hit Streak 22 | 14 8 6 14 5 22 21 10 . 13 . . . . . . 2 . . . . . . 3 . . . . . . . . . Robot Miss Streak 4 | . 3 4 4 . 3 3 . . 1 . . . . . . . . . . . . . . . . . . . . . . . Penetration Max . | . . . . . . . . . . . . . . . . . . . . . . . . . . . . . . . . . Secondary Targets 4 | . . . . . 4 . . . . . . . . . . . . . . . . . . . . . . . . . . . Max Gunslinging Chain 1 | . . . . . 1 . . . . . . . . . . . . . . . . . . . . . . . . . . . Shots Hit Robots 647 | 14 104 21 141 3 116 148 2 . 6 . 15 . 7 4 . 14 2 . . 2 9 . 6 . . 1 2 . 5 7 1 17 Core Hits 319 | 3 42 10 59 1 47 73 1 . 13 . 6 . 2 2 . 4 2 . 8 2 5 . 3 3 . 1 17 . 1 5 . 9 Critical Kills 2 | . 1 . 1 . . . . . . . . . . . . . . . . . . . . . . . . . . . . . Critical Parts Destroyed 3 | . . . 1 . 1 1 . . . . . . . . . . . . . . . . . . . . . . . . . . Critical Strikes 17 | . 1 . 2 . 1 6 . . . . 1 . 1 . . . . . . . 1 . 1 . . . . . . . . 3 Burn 1 | . . . . . . 1 . . . . . . . . . . . . . . . . . . . . . . . . . . Meltdown 1 | . . . 1 . . . . . . . . . . . . . . . . . . . . . . . . . . . . . Destroy 4 | . 1 . 1 . 1 1 . . . . . . . . . . . . . . . . . . . . . . . . . . Blast 4 | . . . . . . 4 . . . . . . . . . . . . . . . . . . . . . . . . . . Sever 5 | . . . . . . . . . . . 1 . 1 . . . . . . . . . . . . . . . . . . 3 Sunder 2 | . . . . . . . . . . . . . . . . . . . . . 1 . 1 . . . . . . . . . Melee Attacks 276 | . . . . . . . . . 10 . 23 1 9 7 . 32 3 3 2 2 19 . 19 . . 1 6 8 25 40 19 47 Impact . | . . . . . . . . . . . . . . . . . . . . . . . . . . . . . . . . . Slashing 250 | . . . . . . . . . 10 . 23 1 9 7 . 31 3 3 1 2 10 . 11 . . 1 3 6 23 40 19 47 Piercing . | . . . . . . . . . . . . . . . . . . . . . . . . . . . . . . . . . Entropic 25 | . . . . . . . . . . . . . . . . . . . 1 . 9 . 8 . . . 3 2 2 . . . Sneak Attacks 31 | . . . . . . . . . 2 . 4 . . 1 . 5 2 . . 1 4 . 3 . . . 1 . 4 4 . . Combat Hostiles 1 | . . . . . . . . . . . . . . . . . . . . 1 . . . . . . . . . . . . Follow-up Attacks 1 | . . . . . . . . . . . . . . . . . . . . . . . . . . . . . 1 . . . Damage Inflicted 20479 | 156 1327 328 2350 47 1759 3826 75 . 608 . 761 . 286 249 . 778 165 . 1115 114 1182 . 807 485 . 106 878 . 614 953 77 1433 Guns 5003 | 156 928 104 1012 47 1759 960 37 . . . . . . . . . . . . . . . . . . . . . . . . . Cannons 3923 | . 399 224 1338 . . 1891 . . . . . . . . . 35 . . . . . . 36 . . . . . . . . . Explosions 3772 | . . . . . . 975 38 . 467 . . . . . . . . . 1115 . . . . 485 . . 692 . . . . . Melee 7775 | . . . . . . . . . 141 . 761 . 286 249 . 743 165 . . 114 1182 . 771 . . 106 186 . 614 953 77 1427 Ramming 6 | . . . . . . . . . . . . . . . . . . . . . . . . . . . . . . . . 6 Kinetic 5840 | 72 600 104 870 47 1759 2388 . . . . . . . . . . . . . . . . . . . . . . . . . . Thermal 3148 | 84 727 224 1480 . . 328 55 . . . . . . . . 35 . . 179 . . . 36 . . . . . . . . . Explosive 3513 | . . . . . . 933 . . 467 . . . . . . . . . 936 . . . . 485 . . 692 . . . . . Electromagnetic 197 | . . . . . . 177 20 . . . . . . . . . . . . . . . . . . . . . . . . . Impact . | . . . . . . . . . . . . . . . . . . . . . . . . . . . . . . . . . Slashing 5858 | . . . . . . . . . 141 . 761 . 286 249 . 743 165 . . 114 220 . 62 . . 106 98 . 456 953 77 1427 Piercing . | . . . . . . . . . . . . . . . . . . . . . . . . . . . . . . . . . Entropic 1917 | . . . . . . . . . . . . . . . . . . . . . 962 . 709 . . . 88 . 158 . . . Highest Corruption 4 | . . . 1 1 . . . . 1 1 2 2 . . . . . . 1 1 2 2 2 2 2 2 2 . . . 3 4 Average Corruption 1 | . . . 1 1 . . . . 1 1 1 2 . . . . . . 1 1 2 2 2 2 2 2 2 . . . 1 2 Corruption Purged 5 | . . . . . . . . . . . . . . . . . . . . . . . . . . . . . . . . 5 Corruption Blocked . | . . . . . . . . . . . . . . . . . . . . . . . . . . . . . . . . . Effects 42 | . . . 4 . . . . . 2 . 5 . . . . . . . 1 . 3 1 4 1 1 2 2 . . . 4 12 Message Errors 10 | . . . 1 . . . . . 1 . 1 . . . . . . . 1 . 1 . . . . . 1 . . . 2 2 Matter Fused 14 | . . . 2 . . . . . 1 . 1 . . . . . . . . . . . 2 1 1 1 . . . . . 5 Heat Flow Errors 3 | . . . . . . . . . . . . . . . . . . . . . . 1 . . . 1 . . . . . 1 Energy Discharges 5 | . . . . . . . . . . . 1 . . . . . . . . . 1 . 1 . . . . . . . 1 1 Parts Rejected 1 | . . . . . . . . . . . 1 . . . . . . . . . . . . . . . . . . . . . Parts Fused 3 | . . . . . . . . . . . . . . . . . . . . . . . 1 . . . . . . . 1 1 Data Loss (minor) 4 | . . . 1 . . . . . . . 1 . . . . . . . . . 1 . . . . . 1 . . . . . Data Loss (major) 2 | . . . . . . . . . . . . . . . . . . . . . . . . . . . . . . . . 2 Overload Shots . | . . . . . . . . . . . . . . . . . . . . . . . . . . . . . . . . . Overflow Damage 1360 | . . . 6 . . 9 . . 1 . 71 . . 27 . 123 . . 44 . 210 . 174 112 . . . . 273 233 7 70 Projectiles 6 | . . . 6 . . . . . . . . . . . . . . . . . . . . . . . . . . . . . Explosions 166 | . . . . . . 9 . . 1 . . . . . . . . . 44 . . . . 112 . . . . . . . . Melee 1188 | . . . . . . . . . . . 71 . . 27 . 123 . . . . 210 . 174 . . . . . 273 233 7 70 Knockbacks 7 | . . . . . . 7 . . . . . . . . . . . . . . . . . . . . . . . . . . Impact . | . . . . . . . . . . . . . . . . . . . . . . . . . . . . . . . . . Kinetic 4 | . . . . . . 4 . . . . . . . . . . . . . . . . . . . . . . . . . . Secondary 3 | . . . . . . 3 . . . . . . . . . . . . . . . . . . . . . . . . . . Self-Inflicted Damage 153 | . . . . . . 61 13 . 14 . . . . . . . . . . 62 . . . . . . . . . . . 3 Shots 6 | . . . . . . 3 1 . 1 . . . . . . . . . . 1 . . . . . . . . . . . . Rammed 2 | . . . . . . . . . . . . . . . . . . . . . . . . . . . . . . . . 2 Targets Rammed 2 | . . . . . . . . . . . . . . . . . . . . . . . . . . . . . . . . 2 Kicked . | . . . . . . . . . . . . . . . . . . . . . . . . . . . . . . . . . Crushed . | . . . . . . . . . . . . . . . . . . . . . . . . . . . . . . . . . Highest Temperature 366 | . 366 5 20 . . 155 19 . 20 2 7 . 10 . . 174 144 . 53 18 26 109 168 . . 94 120 176 158 136 236 346 Average Temperature 59 | . 109 2 6 . . 49 17 . 5 2 3 . 7 . . 44 68 . 11 8 19 64 57 . . 60 31 77 68 49 40 126 Received Heat Transfer 2541 | . 489 69 564 . 270 467 9 . 15 . 36 . . . . . . . 21 . 12 . . . . . . . . . 27 562 Effects 2 | . 2 . . . . . . . . . . . . . . . . . . . . . . . . . . . . . . . Energy Bleed 2 | . 2 . . . . . . . . . . . . . . . . . . . . . . . . . . . . . . . Siege Activations . | . . . . . . . . . . . . . . . . . . . . . . . . . . . . . . . . . Martial Activations . | . . . . . . . . . . . . . . . . . . . . . . . . . . . . . . . . . Shielding Activations . | . . . . . . . . . . . . . . . . . . . . . . . . . . . . . . . . . Robots Disrupted 1 | . . . . . . . . . . . . . . . . . . . 1 . . . . . . . . . . . . . Combat Hostiles 1 | . . . . . . . . . . . . . . . . . . . 1 . . . . . . . . . . . . . Robots Corrupted . | . . . . . . . . . . . . . . . . . . . . . . . . . . . . . . . . . Combat Hostiles . | . . . . . . . . . . . . . . . . . . . . . . . . . . . . . . . . . Parts Fried . | . . . . . . . . . . . . . . . . . . . . . . . . . . . . . . . . . Impact Corruptions . | . . . . . . . . . . . . . . . . . . . . . . . . . . . . . . . . . Robots Melted 2 | . . . 1 . . 1 . . . . . . . . . . . . . . . . . . . . . . . . . . Combat Hostiles 2 | . . . 1 . . 1 . . . . . . . . . . . . . . . . . . . . . . . . . . Parts Melted 11 | . 1 . 7 . . 1 . . . . . . 2 . . . . . . . . . . . . . . . . . . . Heat Transferred 6224 | 200 1610 481 2915 . . 707 87 . . . . . . . . 37 . . 150 . . . 37 . . . . . . . . . Parts Sabotaged . | . . . . . . . . . . . . . . . . . . . . . . . . . . . . . . . . . Parts Stolen . | . . . . . . . . . . . . . . . . . . . . . . . . . . . . . . . . . Parts Stripped . | . . . . . . . . . . . . . . . . . . . . . . . . . . . . . . . . . Power Chain Reactions 4 | . . . . . . 2 1 . . . . . . . . . . . 1 . . . . . . . . . . . . . Alert | -11 -10 -10 -9 -9 -8 -8 -8 -8 -6 -6 -6 -6 -5 -5 -5 -5 -5 -5 -5 -4 -4 -4 -4 -4 -4 -4 -3 -3 -3 -2 -2 -2 ------- Run | Yrd Mat Min Mat Min Mat Sto Rec Scr Fac Low Low Zio Pro Fac Was Fac Upp Upp War Pro Fac Was Fac Upp Upp Zhi Pro Res Qua Res Tes Frg Maximum Alert Level 4 | . . . 1 . 1 2 1 . 1 . . . . . . . . . . . . . . . . . . . . 1 . 4 Low Security (%) 78 | 100 100 100 64 100 72 54 76 . 97 . . . . 100 100 100 . . . . 100 100 100 . . . . 100 100 69 100 34 Level 1 14 | . . . 35 . 27 15 23 . 2 . . . . . . . . . . . . . . . . . . . . 30 . 21 Level 2 4 | . . . . . . 30 . . . . . . . . . . . . . . . . . . . . . . . . . 10 Level 3 2 | . . . . . . . . . . . . . . . . . . . . . . . . . . . . . . . . 23 Level 4 . | . . . . . . . . . . . . . . . . . . . . . . . . . . . . . . . . 9 Level 5 . | . . . . . . . . . . . . . . . . . . . . . . . . . . . . . . . . . High Security . | . . . . . . . . . . . . . . . . . . . . . . . . . . . . . . . . . Max Security . | . . . . . . . . . . . . . . . . . . . . . . . . . . . . . . . . . Peak Influence 1352 | 10 124 62 272 94 251 538 233 . 212 . . . . 24 44 24 . . . . 21 44 100 . . . . 190 172 267 180 1352 Initial 204 | . . . 17 94 11 84 204 . . . . . . . 4 . . . . . . 2 25 . . . . 190 95 21 139 101 Average 144 | 1 71 8 157 63 133 251 171 . 30 . . . . 7 5 4 . . . . 2 7 25 . . . . 179 64 154 119 499 Influence Increases 8358 | 10 480 130 1027 5 551 1017 154 . 305 . 115 . 162 61 106 109 . . 180 10 76 76 293 110 45 5 150 190 237 488 357 1909 Destroy 0b10 Robot/C 2580 | . 280 100 580 . 340 580 20 . 120 . 20 . 100 . . . . . 60 . . . . 100 . . 100 . . . 20 160 Destroy 0b10 Robot/NC 460 | 10 55 10 75 5 55 65 . . 15 . 10 . . 10 . 15 . . . 10 25 . 25 . . 5 10 . 15 25 5 15 Destroy Leader 664 | . 66 20 174 . 106 152 . . 20 . 10 . 30 2 . 2 . . . . 6 . 8 10 . . 10 . . 4 10 34 Allied During Kill 61 | . . . . . . 5 . . . . . . 32 . . . . . . . . . . . . . . . . . 8 16 Successful Hack 396 | . 17 . 26 . 16 45 9 . . . . . . 28 . 10 . . . . 1 . 74 . . . . 5 78 45 32 10 Select Force Hacks 210 | . 30 . 60 . . . 120 . . . . . . . . . . . . . . . . . . . . . . . . . Disable Machine 285 | . 30 . 45 . . 75 . . 15 . . . . 15 . . . . . . 15 . . . . . . . 45 . 45 . Destroy Structure 642 | . 2 . 7 . 4 50 5 . 30 . . . . 6 76 52 . . . . 14 76 36 . . . . 20 54 99 42 69 Advance Influence 150 | . . . . . . . . . . . . . . . . . . . . . . . . . . . . 150 . . . . Partial Spotted 765 | . . . . . . 15 . . 30 . . . . . 30 30 . . . . 15 . 45 . . . . 15 45 165 45 330 Lose Combat Pursuer 2145 | . . . 60 . 30 30 . . 75 . 75 . . . . . . . 120 . . . 105 . 45 . 30 . . 150 150 1275 Influence Decreases 7022 | 10 480 84 830 219 380 692 527 152 103 96 207 14 162 47 120 100 9 . 126 64 69 47 327 52 42 63 95 80 368 278 426 753 Entered New Map 1364 | . . . 29 149 18 116 321 152 . 76 21 14 . . 10 . 4 . . 54 . 5 11 2 12 63 5 20 75 18 110 79 Time Decay 4390 | 10 440 84 611 70 342 486 206 . 83 20 166 . 142 47 44 100 5 . 126 10 69 22 138 50 30 . 90 60 155 230 150 404 Lost Part 360 | . 40 . 40 . 20 50 . . 10 . 20 . . . . . . . . . . . . . . . . . . . . 180 Lost Ally 326 | . . . . . . 40 . . 10 . . . 20 . 66 . . . . . . 20 10 . . . . . . 30 40 90 Purge Threat 582 | . . . 150 . . . . . . . . . . . . . . . . . . . 168 . . . . . 138 . 126 . Squads Dispatched 54 | . 4 . 3 . 2 6 . . 5 . . . . 1 . 4 . . . . 5 . 2 . . . . 2 2 4 6 8 Investigation 17 | . 3 . 2 . . . . . 3 . . . . 1 . 3 . . . . 1 . . . . . . 1 . 1 1 1 Extermination 14 | . . . . . . . . . . . . . . . . 1 . . . . 2 . 1 . . . . 1 2 3 3 1 Reinforcement 17 | . 1 . 1 . 2 1 . . 2 . . . . . . . . . . . 2 . 1 . . . . . . . 1 6 Assault 3 | . . . . . . 2 . . . . . . . . . . . . . . . . . . . . . . . . 1 . Garrison 3 | . . . . . . 3 . . . . . . . . . . . . . . . . . . . . . . . . . . Intercept . | . . . . . . . . . . . . . . . . . . . . . . . . . . . . . . . . . Searches Triggered . | . . . . . . . . . . . . . . . . . . . . . . . . . . . . . . . . . Construction Impeded 1 | . . . . . . . . . 1 . . . . . . . . . . . . . . . . . . . . . . . Haulers Reinforced 2 | . . . . . . . . . . . . . . . . . . . . . 1 . 1 . . . . . . . . . Active Scanning Responses . | . . . . . . . . . . . . . . . . . . . . . . . . . . . . . . . . . Cargo Convoy Interrupts . | . . . . . . . . . . . . . . . . . . . . . . . . . . . . . . . . . Stealth | -11 -10 -10 -9 -9 -8 -8 -8 -8 -6 -6 -6 -6 -5 -5 -5 -5 -5 -5 -5 -4 -4 -4 -4 -4 -4 -4 -3 -3 -3 -2 -2 -2 --------- Run | Yrd Mat Min Mat Min Mat Sto Rec Scr Fac Low Low Zio Pro Fac Was Fac Upp Upp War Pro Fac Was Fac Upp Upp Zhi Pro Res Qua Res Tes Frg Distress Signals 38 | . 3 . 5 1 1 3 . . . . . . . . . . . . . . 2 . 1 . . . 2 . . 3 2 15 Communications Jammed 12 | . . . . . . . . . . . . . . . . . . . . . . . . . . . . . . 8 3 1 Distress Signals 7 | . . . . . . . . . . . . . . . . . . . . . . . . . . . . . . 3 3 1 Times Spotted 506 | . 26 5 50 . 32 43 1 . 14 . 6 . 7 2 5 3 . 2 60 1 8 6 16 . 2 . 3 3 7 15 23 166 Peak Tracking Total 34 | . 6 3 5 . 6 8 1 . 6 . 4 . 4 2 4 2 . 2 11 1 4 6 9 1 3 . 5 4 7 5 18 34 Tactical Retreats 55 | . . . 3 . 1 2 . . 3 . 3 . . . . . . . 4 . . . 4 . 2 . 2 . . 5 2 24 Traps | -11 -10 -10 -9 -9 -8 -8 -8 -8 -6 -6 -6 -6 -5 -5 -5 -5 -5 -5 -5 -4 -4 -4 -4 -4 -4 -4 -3 -3 -3 -2 -2 -2 ------- Run | Yrd Mat Min Mat Min Mat Sto Rec Scr Fac Low Low Zio Pro Fac Was Fac Upp Upp War Pro Fac Was Fac Upp Upp Zhi Pro Res Qua Res Tes Frg Traps Triggered 13 | . 3 . 4 . . . . . 1 . . . . 1 . . . . . . 1 . . . . . . . 1 . . 2 Indirectly . | . . . . . . . . . . . . . . . . . . . . . . . . . . . . . . . . . Trap Hack Attempts . | . . . . . . . . . . . . . . . . . . . . . . . . . . . . . . . . . Triggered . | . . . . . . . . . . . . . . . . . . . . . . . . . . . . . . . . . Disarmed . | . . . . . . . . . . . . . . . . . . . . . . . . . . . . . . . . . Reprogrammed . | . . . . . . . . . . . . . . . . . . . . . . . . . . . . . . . . . Reused . | . . . . . . . . . . . . . . . . . . . . . . . . . . . . . . . . . Traps Extracted . | . . . . . . . . . . . . . . . . . . . . . . . . . . . . . . . . . Installed 12 | . . . . . . . . . . . 12 . . . . . . . . . . . . . . . . . . . . . Triggered . | . . . . . . . . . . . . . . . . . . . . . . . . . . . . . . . . . Most Traps Carried 1 | . . . . . . . . . . . 1 . . . . . . . . . . . . . . . . . . . . . Machines | -11 -10 -10 -9 -9 -8 -8 -8 -8 -6 -6 -6 -6 -5 -5 -5 -5 -5 -5 -5 -4 -4 -4 -4 -4 -4 -4 -3 -3 -3 -2 -2 -2 ---------- Run | Yrd Mat Min Mat Min Mat Sto Rec Scr Fac Low Low Zio Pro Fac Was Fac Upp Upp War Pro Fac Was Fac Upp Upp Zhi Pro Res Qua Res Tes Frg Machines Disabled 20 | . 2 . 3 . . 5 . . 1 . . . . 1 . . . . 1 . 1 . . . . . . . 3 . 3 . Max in Single Turn 1 | . 1 . 1 . . 1 . . 1 . . . . 1 . . . . 1 . 1 . . . . . . . 1 . 1 . Garrison Access 4 | . . . . . . . . . 1 . . . . . . . . . . . 1 . . . . . . . 1 . . 1 Machines Repaired . | . . . . . . . . . . . . . . . . . . . . . . . . . . . . . . . . . Machines Dismantled 1 | . . . . . . . . . . . . . . . . . . . 1 . . . . . . . . . . . . . Machines Sabotaged . | . . . . . . . . . . . . . . . . . . . . . . . . . . . . . . . . . Overloaded Fab Kills . | . . . . . . . . . . . . . . . . . . . . . . . . . . . . . . . . . Hacking | -11 -10 -10 -9 -9 -8 -8 -8 -8 -6 -6 -6 -6 -5 -5 -5 -5 -5 -5 -5 -4 -4 -4 -4 -4 -4 -4 -3 -3 -3 -2 -2 -2 --------- Run | Yrd Mat Min Mat Min Mat Sto Rec Scr Fac Low Low Zio Pro Fac Was Fac Upp Upp War Pro Fac Was Fac Upp Upp Zhi Pro Res Qua Res Tes Frg Machines Accessed 122 | . 6 . 14 1 6 8 9 2 7 . 1 . . 4 . 7 1 . 2 . 7 . 7 . . 3 . 3 10 7 8 9 Terminals 61 | . 4 . 9 . 5 6 5 . 1 . . . . 2 . . . . . . 3 . 5 . . . . 2 7 4 5 3 Fabricators 5 | . . . . . . . . . . . . . . 1 . 1 . . . . . . 1 . . . . . . . . 2 Repair Stations 15 | . 1 . 1 . 1 2 . . 1 . . . . . . 2 . . . . 2 . 1 . . . . . 2 . 1 1 Recycling Units 20 | . 1 . 2 . . . 4 . 3 . . . . 1 . 4 . . . . 1 . . . . . . 1 . 1 . 2 Scanalyzers 5 | . . . 2 . . . . . . . . . . . . . . . . . . . . . . . . . . 1 2 . Garrison Access 6 | . . . . . . . . . 2 . . . . . . . . . . . 1 . . . . . . . 1 1 . 1 Total Hacks 291 | . 20 . 34 1 20 16 20 5 13 . 1 . . 6 . 11 1 . 2 . 20 . 25 . . 13 . 12 30 10 14 17 Successful 174 | . 9 . 20 1 11 12 11 5 7 . 1 . . 4 . 5 1 . 2 . 13 . 17 . . 13 . 4 15 7 9 7 Failed 117 | . 11 . 14 . 9 4 9 . 6 . . . . 2 . 6 . . . . 7 . 8 . . . . 8 15 3 5 10 Catastrophic 13 | . 1 . 1 . 3 . 1 . . . . . . . . 1 . . . . 1 . 2 . . . . . 1 . . 2 Database Lockouts . | . . . . . . . . . . . . . . . . . . . . . . . . . . . . . . . . . Manual 125 | . 14 . 12 . 13 3 15 . 7 . . . . 4 . 6 . . . . 9 . 9 . . . . 8 6 5 6 8 Terminals 180 | . 17 . 23 . 16 11 15 . 2 . . . . 4 . . . . . . 13 . 21 . . . . 11 23 6 11 7 Fabricators 6 | . . . . . . . . . . . . . . 1 . 1 . . . . . . 1 . . . . . . . . 3 Repair Stations 33 | . 1 . 2 . 4 5 . . 2 . . . . . . 4 . . . . 5 . 3 . . . . . 4 . 1 2 Recycling Units 28 | . 2 . 3 . . . 5 . 5 . . . . 1 . 6 . . . . 1 . . . . . . 1 . 1 . 3 Scanalyzers 9 | . . . 6 . . . . . . . . . . . . . . . . . . . . . . . . . . 1 2 . Garrison Access 12 | . . . . . . . . . 4 . . . . . . . . . . . 1 . . . . . . . 3 2 . 2 Terminal Hacks 88 | . 4 . 9 1 5 7 4 5 . . 1 . . 1 . . 1 . 2 . 6 . 11 . . 13 . 2 10 2 4 . Record 5 | . . . . . . 1 . 1 . . . . . . . . . . . . . . . . . 1 . 1 1 . . . Part Schematic 6 | . . . . . . . . . . . . . . . . . . . . . 1 . 1 . . 4 . . . . . . Robot Analysis 11 | . . . . . 2 . . 4 . . . . . . . . . . . . . . 1 . . 4 . . . . . . Prototype ID Bank 20 | . 2 . 3 . 1 2 2 . . . . . . . . . . . . . 1 . 3 . . 4 . . 2 . . . Open Door 8 | . . . . 1 . 3 . . . . 1 . . . . . 1 . 2 . . . . . . . . . . . . . Open DSF 1 | . . . . . . . . . . . . . . . . . . . . . . . . . . . . . . 1 . . Level Access Points 2 | . . . 1 . . . . . . . . . . . . . . . . . . . . . . . . . 1 . . . Branch Access Points 2 | . . . . . . . . . . . . . . . . . . . . . 1 . 1 . . . . . . . . . Terminal Index 3 | . . . . . . . . . . . . . . . . . . . . . 1 . 1 . . . . . . 1 . . Repair Station Index 1 | . . . . . . . . . . . . . . . . . . . . . . . 1 . . . . . . . . . Recycling Unit Index 1 | . . . . . . . . . . . . . . . . . . . . . . . . . . . . 1 . . . . Alert Level 4 | . . . 2 . . . 1 . . . . . . . . . . . . . 1 . . . . . . . . . . . Unreport Threat 5 | . . . 1 . . . . . . . . . . . . . . . . . . . 2 . . . . . 1 . 1 . Locate Traps 4 | . 1 . 1 . . . . . . . . . . . . . . . . . 1 . 1 . . . . . . . . . Recall Extermination 1 | . . . . . . . . . . . . . . . . . . . . . . . . . . . . . 1 . . . Hauler Manifests 1 | . . . . . . . . . . . . . . 1 . . . . . . . . . . . . . . . . . . Registered Components 1 | . . . . . . 1 . . . . . . . . . . . . . . . . . . . . . . . . . . Zone Layout 11 | . 1 . 1 . 2 . 1 . . . . . . . . . . . . . . . . . . . . . 4 . 2 . Protovariant Controls 1 | . . . . . . . . . . . . . . . . . . . . . . . . . . . . . . . 1 . Fabricator Hacks 5 | . . . . . . . . . . . . . . 1 . 1 . . . . . . 1 . . . . . . . . 2 Network Status 4 | . . . . . . . . . . . . . . 1 . 1 . . . . . . 1 . . . . . . . . 1 Build 1 | . . . . . . . . . . . . . . . . . . . . . . . . . . . . . . . . 1 Repair Station Hacks 20 | . . . 2 . 4 3 . . 2 . . . . . . 1 . . . . 4 . 2 . . . . . 2 . . . Scan Component 11 | . . . 1 . 2 2 . . 1 . . . . . . 1 . . . . 2 . 1 . . . . . 1 . . . Repair 9 | . . . 1 . 2 1 . . 1 . . . . . . . . . . . 2 . 1 . . . . . 1 . . . Recycling Unit Hacks . | . . . . . . . . . . . . . . . . . . . . . . . . . . . . . . . . . Scanalyzer 6 | . . . 3 . . . . . . . . . . . . . . . . . . . . . . . . . . 1 2 . Insert Component 4 | . . . 1 . . . . . . . . . . . . . . . . . . . . . . . . . . 1 2 . Retrieve Study 2 | . . . 2 . . . . . . . . . . . . . . . . . . . . . . . . . . . . . Garrison Access Hacks 4 | . . . . . . . . . 1 . . . . . . . . . . . 1 . . . . . . . 1 . . 1 Seal Access 4 | . . . . . . . . . 1 . . . . . . . . . . . 1 . . . . . . . 1 . . 1 Unauthorized Hacks 51 | . 5 . 6 . 2 2 7 . 4 . . . . 2 . 3 . . . . 2 . 3 . . . . 2 2 4 3 4 Terminals 32 | . 4 . 4 . 2 2 3 . 1 . . . . 1 . . . . . . 1 . 3 . . . . 1 2 3 2 3 Track 2 | . . . . . . . . . . . . . . . . . . . . . . . . . . . . . . . . 2 Assimilate 8 | . . . . . . . . . 1 . . . . 1 . . . . . . . . 1 . . . . . . 3 1 1 Botnet 22 | . 4 . 4 . 2 2 3 . . . . . . . . . . . . . 1 . 2 . . . . 1 2 . 1 . Fabricators . | . . . . . . . . . . . . . . . . . . . . . . . . . . . . . . . . . Repair Stations 1 | . . . . . . . . . . . . . . . . . . . . . . . . . . . . . . . 1 . Patch 1 | . . . . . . . . . . . . . . . . . . . . . . . . . . . . . . . 1 . Recycling Units 18 | . 1 . 2 . . . 4 . 3 . . . . 1 . 3 . . . . 1 . . . . . . 1 . 1 . 1 Tunnel 7 | . 1 . 2 . . . 4 . . . . . . . . . . . . . . . . . . . . . . . . . Fedlink 11 | . . . . . . . . . 3 . . . . 1 . 3 . . . . 1 . . . . . . 1 . 1 . 1 Scanalyzers . | . . . . . . . . . . . . . . . . . . . . . . . . . . . . . . . . . Garrison Access . | . . . . . . . . . . . . . . . . . . . . . . . . . . . . . . . . . Data Cores Recovered 3 | . . . . . 1 . . . . . . . . . . . . . . . . . 1 . . . . . . . . 1 Used . | . . . . . . . . . . . . . . . . . . . . . . . . . . . . . . . . . Hacking Detections 73 | . 5 . 10 . 4 4 5 . 2 . . . . 1 . 5 . . . . 4 . 7 . . . . 2 9 3 6 6 Full Trace Events . | . . . . . . . . . . . . . . . . . . . . . . . . . . . . . . . . . Feedback Events . | . . . . . . . . . . . . . . . . . . . . . . . . . . . . . . . . . Feedback Blocked . | . . . . . . . . . . . . . . . . . . . . . . . . . . . . . . . . . Robot Schematics Acquired . | . . . . . . . . . . . . . . . . . . . . . . . . . . . . . . . . . Robots Built 4 | . . . . . . . . . . . . . . . . . . . . . . . . . . . . . . . . 4 Authchips . | . . . . . . . . . . . . . . . . . . . . . . . . . . . . . . . . . Time 68 | . . . . . . . . . . . . . . . . . . . . . . . . . . . . . . . . 68 Total Robot Build Rating 32 | . . . . . . . . . . . . . . . . . . . . . . . . . . . . . . . . 32 Part Schematics Acquired 6 | . . . . . . . . . . . . . . . . . . . . . 1 . 1 . . 4 . . . . . . Parts Built . | . . . . . . . . . . . . . . . . . . . . . . . . . . . . . . . . . Authchips . | . . . . . . . . . . . . . . . . . . . . . . . . . . . . . . . . . Time . | . . . . . . . . . . . . . . . . . . . . . . . . . . . . . . . . . Total Part Build Rating . | . . . . . . . . . . . . . . . . . . . . . . . . . . . . . . . . . Part Studies Acquired 2 | . . . 2 . . . . . . . . . . . . . . . . . . . . . . . . . . . . . Parts Repaired 9 | . . . 1 . 2 1 . . 1 . . . . . . . . . . . 2 . 1 . . . . . 1 . . . Time 538 | . . . 26 . 64 108 . . 38 . . . . . . . . . . . 143 . 51 . . . . . 108 . . . Parts Recycled . | . . . . . . . . . . . . . . . . . . . . . . . . . . . . . . . . . Recycled Matter . | . . . . . . . . . . . . . . . . . . . . . . . . . . . . . . . . . Retrieved Matter . | . . . . . . . . . . . . . . . . . . . . . . . . . . . . . . . . . Retrieved Components . | . . . . . . . . . . . . . . . . . . . . . . . . . . . . . . . . . Parts Scanalyzed . | . . . . . . . . . . . . . . . . . . . . . . . . . . . . . . . . . Part Schematics Acquired . | . . . . . . . . . . . . . . . . . . . . . . . . . . . . . . . . . Parts Damaged . | . . . . . . . . . . . . . . . . . . . . . . . . . . . . . . . . . Bothacking | -11 -10 -10 -9 -9 -8 -8 -8 -8 -6 -6 -6 -6 -5 -5 -5 -5 -5 -5 -5 -4 -4 -4 -4 -4 -4 -4 -3 -3 -3 -2 -2 -2 ------------ Run | Yrd Mat Min Mat Min Mat Sto Rec Scr Fac Low Low Zio Pro Fac Was Fac Upp Upp War Pro Fac Was Fac Upp Upp Zhi Pro Res Qua Res Tes Frg Used RIF Installer . | . . . . . . . . . . . . . . . . . . . . . . . . . . . . . . . . . Robots Hacked . | . . . . . . . . . . . . . . . . . . . . . . . . . . . . . . . . . Non-combat . | . . . . . . . . . . . . . . . . . . . . . . . . . . . . . . . . . Combat . | . . . . . . . . . . . . . . . . . . . . . . . . . . . . . . . . . Robot Hacks Applied . | . . . . . . . . . . . . . . . . . . . . . . . . . . . . . . . . . Relay Couplers Released . | . . . . . . . . . . . . . . . . . . . . . . . . . . . . . . . . . Fabnet Peak Effective % . | . . . . . . . . . . . . . . . . . . . . . . . . . . . . . . . . . Robots Rewired 1 | . . . . . . . . . . . . . . . . . . . . . 1 . . . . . . . . . . . Allies Hacked . | . . . . . . . . . . . . . . . . . . . . . . . . . . . . . . . . . Hacks Repelled . | . . . . . . . . . . . . . . . . . . . . . . . . . . . . . . . . . Allies | -11 -10 -10 -9 -9 -8 -8 -8 -8 -6 -6 -6 -6 -5 -5 -5 -5 -5 -5 -5 -4 -4 -4 -4 -4 -4 -4 -3 -3 -3 -2 -2 -2 -------- Run | Yrd Mat Min Mat Min Mat Sto Rec Scr Fac Low Low Zio Pro Fac Was Fac Upp Upp War Pro Fac Was Fac Upp Upp Zhi Pro Res Qua Res Tes Frg Total Allies 57 | . . . . . . 2 . . 1 . . 4 . . 19 . . . . . 1 18 1 . . . . . . 3 3 5 Largest Group 19 | . . . . . . 2 . . 1 . . 4 4 . 19 . . . . . 1 18 1 . . . . . . 1 2 4 Highest-Rated Group 702 | . . . . . . 62 . . 10 . . 96 96 . 702 . . . . . 48 656 26 . . . . . . 26 106 120 Highest-Rated Ally 96 | . . . . . . 31 . . 10 . . 28 28 . 50 . . . . . 48 50 26 . . . . . . 26 96 30 Initial UFD Resources 98 | . . . . . . . . . 24 40 40 40 42 42 52 52 60 60 60 63 63 73 73 73 73 73 75 75 85 88 98 98 Total Orders 6 | . . . . . . . . . . . . . . 1 . . . . . . 1 . . . . . . . . 3 1 . STAY 4 | . . . . . . . . . . . . . . . . . . . . . 1 . . . . . . . . 2 1 . FOLLOW 1 | . . . . . . . . . . . . . . . . . . . . . . . . . . . . . . 1 . . RETURN 1 | . . . . . . . . . . . . . . 1 . . . . . . . . . . . . . . . . . . Ally Attacks 306 | . . . . . . 9 . . . . . . 19 . 128 . . . . . . 108 . . . . . . . . 8 34 Total Damage 9472 | . . . . . . 107 . . . . . . 324 . 4742 . . . . . . 3577 . . . . . . . . 212 510 Kills 28 | . . . . . . 2 . . . . . . 5 . 10 . . . . . . 7 . . . . . . . . 2 2 Allies Corrupted 2 | . . . . . . . . . . . . . . . . . . . . . . . . . . . . . . . 2 . Allies Melted 4 | . . . . . . . . . . . . . . . . . . . 4 . . . . . . . . . . . . . Intel | -11 -10 -10 -9 -9 -8 -8 -8 -8 -6 -6 -6 -6 -5 -5 -5 -5 -5 -5 -5 -4 -4 -4 -4 -4 -4 -4 -3 -3 -3 -2 -2 -2 ------- Run | Yrd Mat Min Mat Min Mat Sto Rec Scr Fac Low Low Zio Pro Fac Was Fac Upp Upp War Pro Fac Was Fac Upp Upp Zhi Pro Res Qua Res Tes Frg Active Infowar (turns) 7394 | 3 196 2 . . . . . . 7 51 434 298 417 178 284 383 91 121 1023 98 406 106 444 126 63 58 192 134 514 486 319 960 Optics 7185 | . . . . . . . . . . 51 434 298 417 178 284 383 91 121 1023 98 406 106 444 126 63 58 192 134 514 485 319 960 Sensors 4762 | . . 2 . . . . . . 7 . . . . 174 231 329 91 121 898 92 373 106 437 126 63 43 177 134 505 468 231 154 Seismic 199 | 3 196 . . . . . . . . . . . . . . . . . . . . . . . . . . . . . . . Decoding 786 | . . . . . . . . . . . . 218 417 151 . . . . . . . . . . . . . . . . . . Cloaking 47 | . . . . . . . . . . . . . . . . . . . . . . . . . . . . . . . . 47 Jamming 1510 | . . . . . . . . . . . . . . . . . . . . . . . . . . . . 134 508 486 262 120 Robot Analysis Total 11 | . . . . . 2 . . 4 . . . . . . . . . . . . . . 1 . . 4 . . . . . . Derelict Logs Recovered 11 | . . 2 . . . . . . . . 1 2 1 . . . 2 . . 1 . . . 2 . . . . . . . . Drone Launches 1 | . . . . . . . . . . . . . . 1 . . . . . . . . . . . . . . . . . . Drone Recoveries 1 | . . . . . . . . . . . . . . 1 . . . . . . . . . . . . . . . . . . Decoded 0b10 Intel 3 | . . . . . . . . . . . . . . 3 . . . . . . . . . . . . . . . . . . Traps 1 | . . . . . . . . . . . . . . 1 . . . . . . . . . . . . . . . . . . Emergency Access 2 | . . . . . . . . . . . . . . 2 . . . . . . . . . . . . . . . . . . Exploration | -11 -10 -10 -9 -9 -8 -8 -8 -8 -6 -6 -6 -6 -5 -5 -5 -5 -5 -5 -5 -4 -4 -4 -4 -4 -4 -4 -3 -3 -3 -2 -2 -2 ------------- Run | Yrd Mat Min Mat Min Mat Sto Rec Scr Fac Low Low Zio Pro Fac Was Fac Upp Upp War Pro Fac Was Fac Upp Upp Zhi Pro Res Qua Res Tes Frg Turns Passed 15073 | 49 1184 594 2021 149 912 1273 426 928 342 59 434 298 417 178 284 383 91 121 1023 98 406 106 444 126 63 58 192 134 514 486 319 961 Spaces Moved 23577 | 17 763 454 1209 131 485 683 401 877 800 249 884 1008 966 548 438 783 414 442 1060 318 755 282 905 378 232 169 622 322 961 1388 1016 3617 Core 113 | . . . . . . . . . . . . . . . 24 . . . . . . . . . . . . . . . . 89 Treads 72 | . 67 5 . . . . . . . . . . . . . . . . . . . . . . . . . . . . . . Legs . | . . . . . . . . . . . . . . . . . . . . . . . . . . . . . . . . . Wheels 4972 | 17 696 449 1209 131 485 683 401 877 24 . . . . . . . . . . . . . . . . . . . . . . . Hover . | . . . . . . . . . . . . . . . . . . . . . . . . . . . . . . . . . Flight 18420 | . . . . . . . . . 776 249 884 1008 966 548 414 783 414 442 1060 318 755 282 905 378 232 169 622 322 961 1388 1016 3528 Fastest Speed 6 | 95 95 115 105 105 105 105 105 105 23 23 23 23 23 20 20 20 20 20 14 20 20 25 6 25 21 21 6 6 6 6 6 6 Average Speed 40 | 97 115 116 114 105 105 105 105 105 26 23 27 23 23 20 40 22 20 23 22 21 24 25 24 26 26 24 20 21 23 21 18 15 Slowest Speed 400 | 100 160 240 145 105 105 105 105 105 163 23 29 23 23 23 400 23 20 90 23 23 27 25 27 27 27 27 25 25 26 22 21 105 Overloaded Moves 755 | . . . . . . . . . . . . . . . . . . . 11 . . . 21 . . . 28 16 44 31 148 456 Propulsion Burnouts . | . . . . . . . . . . . . . . . . . . . . . . . . . . . . . . . . . Robots Hopped 141 | . . . . . . . . . 9 . 1 . . 1 . 1 . . 1 . 4 . 21 . . . . 6 7 28 15 47 Potential Cave-ins 6 | . . . . . . . . . . . . . . . . . . . . . . . 2 . . . . . . . . 4 Cave-ins Triggered . | . . . . . . . . . . . . . . . . . . . . . . . . . . . . . . . . . Teleports 1 | . . . . . . . . . . . . . . . . . . . . . . . . . . . . . . . 1 . Exploration Rate (%) 59 | 2 84 88 92 21 45 88 93 80 21 58 89 85 82 14 94 29 71 52 71 49 16 96 21 52 52 61 82 17 90 37 74 65 Regions Visited 32 Branch Regions 20 Pre-discovered Areas 11 | . 1 . 2 . . . 4 . 1 . 1 1 . . . . . . . 1 . . . . . . . . . . . . Known Exits Taken 16 | . . . . 1 1 . . . . . . . . . . 1 1 1 1 1 . . 1 1 1 1 1 1 1 1 1 . Unknown Exits Taken 12 | 1 1 1 1 . . 1 1 1 1 1 1 1 1 . . . . . . . . . . . . . . . . . . . Scrap Searched 26 | . . 3 . . . . . 6 . . 2 3 2 . . . 2 2 . 2 . . . 2 1 . 1 . . . . . Spaces Dug 588 | . . . . . . 21 . . 7 . 86 . 101 3 . 28 1 39 1 164 7 . 24 . . . 2 10 25 34 12 23 Terrain Destroyed 966 | . . . . . . 45 6 . 31 . 110 . 130 3 . 28 1 66 57 164 7 . 24 104 . . 85 10 26 34 12 23 Melee 146 | . . . . . . . . . 7 . 4 . 2 2 . 18 1 3 1 . 6 . 10 . . . 2 6 18 31 12 23 Projectile 44 | . . . . . . 3 . . . . . . . 1 . 10 . . . . 1 . 14 . . . . 4 8 3 . . AOE 776 | . . . . . . 42 6 . 24 . 106 . 128 . . . . 63 56 164 . . . 104 . . 83 . . . . . Terrain Rammed . | . . . . . . . . . . . . . . . . . . . . . . . . . . . . . . . . . Walls Destroyed . | . . . . . . . . . . . . . . . . . . . . . . . . . . . . . . . . . Machines Disabled . | . . . . . . . . . . . . . . . . . . . . . . . . . . . . . . . . . Actions | -11 -10 -10 -9 -9 -8 -8 -8 -8 -6 -6 -6 -6 -5 -5 -5 -5 -5 -5 -5 -4 -4 -4 -4 -4 -4 -4 -3 -3 -3 -2 -2 -2 --------- Run | Yrd Mat Min Mat Min Mat Sto Rec Scr Fac Low Low Zio Pro Fac Was Fac Upp Upp War Pro Fac Was Fac Upp Upp Zhi Pro Res Qua Res Tes Frg Total 27507 | 31 909 485 1628 138 745 1026 405 887 903 250 1022 1073 1129 598 543 925 416 450 1817 335 941 318 1062 401 231 182 677 364 1185 1463 1091 3877 Wait 2484 | . 17 1 202 . 153 155 . . 53 . 80 52 136 15 94 83 . . 711 6 146 25 125 . . . 21 33 159 41 45 131 Move 23290 | 16 762 453 1208 130 484 682 400 876 783 248 881 1007 965 546 437 780 413 441 1057 317 747 281 867 377 231 168 621 309 947 1334 988 3534 Hop 116 | . . . . . . . . . 7 . 1 . . 1 . 1 . . 1 . 4 . 16 . . . . 6 6 25 12 36 Pick Up 127 | . 15 6 22 . 4 13 2 4 8 . 1 4 . 6 2 2 . . 3 1 2 2 4 6 . 1 6 . 2 2 2 7 Fast Attach 96 | 1 3 . 13 3 3 6 . . 2 . 3 3 1 2 1 1 . . 4 . 7 3 2 1 . 5 1 1 9 4 . 17 Attach 70 | . 3 . 5 . 3 2 . . 10 1 1 . . 4 2 . . . 2 . . . . 6 . . 7 2 4 4 7 7 Detach 58 | . 1 . 5 . . 2 . . 5 1 1 2 . 2 1 . . . 4 . . 1 1 . . . 1 1 5 4 7 14 Swap 220 | 4 16 5 28 . 13 28 . . 8 . 6 . 5 9 2 13 . 4 17 3 7 . 13 . . 2 5 2 9 3 9 9 Drop 205 | 2 12 3 33 3 12 22 2 7 12 . 2 4 1 5 4 2 . . 6 1 5 6 4 7 . 5 7 . 10 3 2 23 Fire 501 | 8 80 17 112 2 73 116 1 . 5 . 11 . 12 1 . 11 . 2 3 5 1 . 15 4 . . 4 4 11 3 . . Melee 265 | . . . . . . . . . 10 . 23 1 9 7 . 32 3 3 1 2 19 . 15 . . 1 4 6 23 40 19 47 Ram 2 | . . . . . . . . . . . . . . . . . . . . . . . . . . . . . . . . 2 Kick . | . . . . . . . . . . . . . . . . . . . . . . . . . . . . . . . . . Crush . | . . . . . . . . . . . . . . . . . . . . . . . . . . . . . . . . . Escape Stasis . | . . . . . . . . . . . . . . . . . . . . . . . . . . . . . . . . . Rewire 3 | . . . . . . . . . . . . . . . . . . . . . 3 . . . . . . . . . . . Trap 12 | . . . . . . . . . . . 12 . . . . . . . . . . . . . . . . . . . . . Miscellaneous 58 | . . . . . . . . . . . . . . . . . . . 8 . . . . . . . . . . . . 50 Route ------- -11/Scrapyard -10/Materials (discovered 5 exits: *Mat x3 / [*Min] / [*Sub]) -10/Mines (discovered 2 exits: *Mat x2) -9/Materials (discovered 4 exits: *Mat x3 / *Min) -9/Mines -8/Materials (discovered 2 exits: [*Fac] / *Sto) -8/Storage (discovered 2 exits: [*Fac] / *Rec) -8/Recycling (discovered 2 exits: *Fac / *Scr) -8/Scraptown (discovered 2 exits: *Fac x2) -6/Factory -6/Lower Caves -6/Lower Caves (discovered 2 exits: *Fac / [*Zio]) -6/Zion -5/Proximity Caves -5/Factory (discovered 3 exits: Fac / Upp x2) -5/Waste -5/Factory (discovered 2 exits: *Fac / *Upp) -5/Upper Caves -5/Upper Caves (discovered 2 exits: *Fac / *War) -5/Warlord -4/Proximity Caves -4/Factory (discovered 5 exits: Upp x2 / *Ext x2 / Arm) -4/Waste -4/Factory (discovered 5 exits: *Upp x2 / Ext x2 / Arm) -4/Upper Caves -4/Upper Caves (discovered 2 exits: *Res / *Zhi) -4/Zhirov -3/Proximity Caves -3/Research (discovered 2 exits: *Qua x2) -3/Quarantine -2/Research (discovered 2 exits: *Acc / *Tes) -2/Testing (discovered 3 exits: *Acc / [*Sec] / *Frg) -2/Protoforge (discovered 1 exit: *Acc) History --------- Turn | Location | Event 7 | -11/Scrapyard | Discovered new exit (range 3) 50 | -11/Scrapyard | Entered Materials 70 | -10/Materials | Discovered new exit (range 16) 270 | -10/Materials | Discovered new exit (range 13) 337 | -10/Materials | Build established: Mutant 549 | -10/Materials | Discovered new exit (range 13) 650 | -10/Materials | Derelicts attacked the area 754 | -10/Materials | Discovered new exit (range 8) 787 | -10/Materials | Core integrity fell below 50% 1194 | -10/Materials | Discovered new exit (range 7) 1234 | -10/Materials | Entered Mines 1276 | -10/Mines | Deemed a non-threat by the Exiles lab entrance 1647 | -10/Mines | Found a damaged Exp. Sensor Array with a note attached 1649 | -10/Mines | Found Prototype Device 1649 | -10/Mines | Identified Exp. Sensor Array 1669 | -10/Mines | Discovered new exit (range 11) 1783 | -10/Mines | Discovered new exit (range 8) 1828 | -10/Mines | Entered Materials 1828 | -9/Materials | Evolved 2 slots: Propulsion x1, Utility x1 2227 | -9/Materials | Build established: Scavenger-Mutant 2392 | -9/Materials | Discovered new exit (range 3) 2787 | -9/Materials | Discovered new exit (range 7) 3028 | -9/Materials | Discovered new exit (range 8) 3126 | -9/Materials | Identified exit to Materials 3723 | -9/Materials | Repaired Lgt. Armor Plating 3849 | -9/Materials | Entered Mines 3889 | -9/Mines | Found the Drone Emporium 3897 | -9/Mines | Found Prototype Device 3897 | -9/Mines | Identified Bomb Drone Bay 3965 | -9/Mines | Discovered exit to Materials (range 10) 3998 | -9/Mines | Entered Materials 3998 | -8/Materials | Evolved 2 slots: Propulsion x1, Utility x1 3999 | -8/Materials | Identified exit to Storage 4606 | -8/Materials | Discovered new exit (range 16) 4777 | -8/Materials | Repaired Imp. Ion Engine 4811 | -8/Materials | Repaired Shield Generator 4910 | -8/Materials | Entered Storage 5507 | -8/Storage | Repaired Exp. Sensor Array 5636 | -8/Storage | Destroyed 8 combat bots 5678 | -8/Storage | Discovered new exit (range 14) 5709 | -8/Storage | Met a pair of Derelict thieves 5763 | -8/Storage | Garrison activated, responded to threat 5819 | -8/Storage | Destroyed 8 combat bots 6179 | -8/Storage | Used back door to open Recycling access 6179 | -8/Storage | Discovered new exit (range 5) 6183 | -8/Storage | Entered Recycling 6184 | -8/Recycling | Joined Warlord attack on 0b10 via Recycling 6272 | -8/Recycling | Build established: Mutant 6380 | -8/Recycling | Discovered new exit (range 14) 6583 | -8/Recycling | Scanned before Scraplab entrance 6598 | -8/Recycling | Entered Scraplab 6606 | -8/Recycling | Discovered new exit (range 3) 6609 | -8/Recycling | Entered Scraptown 6759 | -8/Scraptown | Visited Symbiants 6781 | -8/Scraptown | Visited SPCMW 6959 | -8/Scraptown | Discovered new exit (range 11) 7051 | -8/Scraptown | Visited Fellowship of the Rings 7071 | -8/Scraptown | Heard Great Nut preacher, LISTEN AND RECITE! 7080 | -8/Scraptown | Visited UFD Registry 7080 | -8/Scraptown | Registered with UFD as "Pyromind" 7114 | -8/Scraptown | Visited Cartography Club 7135 | -8/Scraptown | Visited Curators Association 7154 | -8/Scraptown | Visited Analyses Database 7178 | -8/Scraptown | Visited Modified Component R&D 7189 | -8/Scraptown | Visited Junk Repository 7226 | -8/Scraptown | Visited Derelict Rescue Squad 7251 | -8/Scraptown | Visited DA-N13 Charitable Foundation 7256 | -8/Scraptown | Found DCF Scrap (30 items) 7359 | -8/Scraptown | Visited Junk Repository 7412 | -8/Scraptown | Visited Scrapoid Research Area 7428 | -8/Scraptown | Visited Science Guys 7482 | -8/Scraptown | Met Optimus 7482 | -8/Scraptown | Accepted into 0bPrime 7532 | -8/Scraptown | Discovered new exit (range 5) 7537 | -8/Scraptown | Entered Factory 7537 | -6/Factory | Evolved 4 slots: Propulsion x1, Utility x3 7733 | -6/Factory | Repaired Hardlight Generator 7773 | -6/Factory | Loaded intel: 8 recycling unit locations 7800 | -6/Factory | Learned location of Protoforge (-2) 7859 | -6/Factory | Discovered new exit (range 11) 7879 | -6/Factory | Entered Lower Caves 7881 | -6/Lower Caves | Build established: Hacker-Sprinter 7902 | -6/Lower Caves | Encountered a Warlord checkpoint 7936 | -6/Lower Caves | Discovered new exit (range 8) 7938 | -6/Lower Caves | Entered another Lower Caves area 7943 | -6/Lower Caves | Discovered new exit (range 9) 7947 | -6/Lower Caves | Spotted B-75 Beast 8039 | -6/Lower Caves | Encountered a Warlord checkpoint 8242 | -6/Lower Caves | Lost 3 allies 8369 | -6/Lower Caves | Discovered new exit (range 20) 8372 | -6/Lower Caves | Entered Zion 8383 | -6/Zion | Discovered new exit (range 10) 8398 | -6/Zion | System corruption cleaned by Quarantine Array 8401 | -6/Zion | Learned 12 Factory zone layouts 8411 | -6/Zion | Given A8's code to call for help 8432 | -6/Zion | Found Prototype Device 8432 | -6/Zion | Identified Bomb Factory No. 2 8442 | -6/Zion | Given the Hacking Drone Bay 8443 | -6/Zion | Found Prototype Device 8464 | -6/Zion | Found Prototype Launcher 8464 | -6/Zion | Identified Rocket Array 8498 | -6/Zion | System corruption cleaned by Quarantine Array 8533 | -6/Zion | Acquired unknown access codes intercepted by a Zionite 8625 | -6/Zion | Gained Derelict followers 8656 | -6/Zion | Build established: Sprinter 8670 | -6/Zion | Entered Proximity Caves 8670 | -5/Proximity Caves | Accompanied by 4 allies 8725 | -5/Proximity Caves | Spotted B-75 Beast 8927 | -5/Proximity Caves | Learned 12 Factory zone layouts 9084 | -5/Proximity Caves | Discovered new exit (range 11) 9087 | -5/Proximity Caves | Entered Factory 9087 | -5/Factory | Evolved 2 slots: Propulsion x1, Utility x1 9088 | -5/Factory | Identified exit to Factory 9088 | -5/Factory | Identified exit to Upper Caves 9088 | -5/Factory | Identified Hacking Drone Bay 9205 | -5/Factory | Loaded intel: 8 recycling unit locations 9265 | -5/Factory | Manually triggered Chute Trap 9265 | -5/Factory | Sucked down chute 9265 | -5/Factory | Entered Waste 9271 | -5/Waste | Spotted C-40 Crusher 9286 | -5/Waste | Warlord forces began an assault 9303 | -5/Waste | Spotted C-40 Crusher 9303 | -5/Waste | Spotted C-40 Crusher 9311 | -5/Waste | Spotted C-40 Crusher 9315 | -5/Waste | Spotted C-40 Crusher 9320 | -5/Waste | Spotted C-40 Crusher 9338 | -5/Waste | Discovered new exit (range 10) 9344 | -5/Waste | Identified exit to Factory 9360 | -5/Waste | Allies destroyed C-40 Crusher 9401 | -5/Waste | Lost 7 allies 9549 | -5/Waste | Entered Factory 9551 | -5/Factory | Loaded intel: 8 recycling unit locations 9666 | -5/Factory | Discovered exit to Factory (range 5) 9893 | -5/Factory | Discovered exit to Upper Caves (range 20) 9932 | -5/Factory | Entered Upper Caves 9966 | -5/Upper Caves | Learned Factory emergency access door positions 9976 | -5/Upper Caves | Encountered a Warlord checkpoint 9977 | -5/Upper Caves | Spotted B-75 Beast 9994 | -5/Upper Caves | Discovered new exit (range 6) 9995 | -5/Upper Caves | Identified exit to Upper Caves 10002 | -5/Upper Caves | Learned 4 Factory zone layouts 10023 | -5/Upper Caves | Entered another Upper Caves area 10034 | -5/Upper Caves | Encountered a Warlord checkpoint 10069 | -5/Upper Caves | Discovered exit to Factory (range 15) 10123 | -5/Upper Caves | Build established: Hacker-Scout 10131 | -5/Upper Caves | Discovered new exit (range 14) 10139 | -5/Upper Caves | Identified exit to Warlord 10144 | -5/Upper Caves | Entered Warlord 10232 | -5/Warlord | Found Prototype Device 10232 | -5/Warlord | Identified System Purifier 10251 | -5/Warlord | Found Prototype Processor 10251 | -5/Warlord | Identified Exp. Targeting Computer 10281 | -5/Warlord | Visited the Vortex Lab 10283 | -5/Warlord | Found Prototype Energy Gun 10283 | -5/Warlord | Identified Vortex Rail 10286 | -5/Warlord | Found Prototype Piercing Weapon 10286 | -5/Warlord | Identified Vortex Lance 10287 | -5/Warlord | Warlord's base attacked by MAIN.C 10438 | -5/Warlord | Spotted B-75 Beast 10444 | -5/Warlord | Spotted B-86 Titan 10519 | -5/Warlord | Opened side exit 10637 | -5/Warlord | Warlord forces counterattacked 10762 | -5/Warlord | Spotted Striker 10775 | -5/Warlord | Spotted Striker 10786 | -5/Warlord | Spotted Executioner 10814 | -5/Warlord | Spotted B-75 Beast 10817 | -5/Warlord | Found Prototype Device 10821 | -5/Warlord | Identified Adv. Kinecellerator 10824 | -5/Warlord | Spotted B-86 Titan 10858 | -5/Warlord | Lost 23 allies 10962 | -5/Warlord | Warlord base infiltrated, sounded retreat 11004 | -5/Warlord | Rebuked by Warlord 11070 | -5/Warlord | Spotted Executioner 11107 | -5/Warlord | Lost 6 allies 11141 | -5/Warlord | Spotted Executioner 11143 | -5/Warlord | Spotted Executioner 11160 | -5/Warlord | Discovered new exit (range 14) 11166 | -5/Warlord | Identified exit to Proximity Caves 11167 | -5/Warlord | Entered Proximity Caves 11262 | -4/Proximity Caves | Discovered exit to Factory (range 9) 11265 | -4/Proximity Caves | Entered Factory 11265 | -4/Factory | Evolved 2 slots: Propulsion x1, Utility x1 11266 | -4/Factory | Identified exit to Extension 11357 | -4/Factory | Identified exit to Upper Caves 11357 | -4/Factory | Identified exit to Armory 11375 | -4/Factory | Loaded intel: 8 recycling unit locations 11506 | -4/Factory | Repaired Neutron Missile Launcher 11565 | -4/Factory | Watched by a mysterious "MATRIX" hacker. 11609 | -4/Factory | Repaired Lgt. Neutrino Core 11671 | -4/Factory | Manually triggered Chute Trap 11671 | -4/Factory | Sucked down chute 11671 | -4/Factory | Entered Waste 11676 | -4/Waste | Spotted C-40 Crusher 11680 | -4/Waste | Spotted C-40 Crusher 11682 | -4/Waste | Spotted C-40 Crusher 11695 | -4/Waste | Spotted C-40 Crusher 11728 | -4/Waste | Spotted C-40 Crusher 11734 | -4/Waste | Spotted C-40 Crusher 11743 | -4/Waste | Warlord forces began an assault 11758 | -4/Waste | Allies destroyed C-40 Crusher 11764 | -4/Waste | Allies destroyed C-40 Crusher 11766 | -4/Waste | Discovered new exit (range 10) 11769 | -4/Waste | Found Prototype Launcher 11769 | -4/Waste | Identified Gui. Micro-nuke Launcher 11777 | -4/Waste | Identified exit to Factory 11777 | -4/Waste | Entered Factory 11854 | -4/Factory | Discovered exit to Upper Caves (range 21) 11889 | -4/Factory | Spotted B-86 Titan 11995 | -4/Factory | Repaired Broken Adv. Cloaking Device 12221 | -4/Factory | Entered Upper Caves 12230 | -4/Upper Caves | Encountered a Warlord checkpoint 12258 | -4/Upper Caves | Learned Research security intel 12282 | -4/Upper Caves | Learned location of 1 exit from Research 12345 | -4/Upper Caves | Discovered new exit (range 8) 12347 | -4/Upper Caves | Identified exit to Upper Caves 12347 | -4/Upper Caves | Entered another Upper Caves area 12348 | -4/Upper Caves | Discovered new exit (range 4) 12349 | -4/Upper Caves | Identified exit to Research 12402 | -4/Upper Caves | Discovered new exit (range 7) 12403 | -4/Upper Caves | Identified exit to Zhirov 12410 | -4/Upper Caves | Entered Zhirov 12410 | -4/Zhirov | Discovered new exit (range 3) 12415 | -4/Zhirov | Met Zhirov 12423 | -4/Zhirov | Zhirov requested help retrieving the SGEMP Prototype 12427 | -4/Zhirov | Found Alien Artifact 12427 | -4/Zhirov | Identified Integrated Reactor 12427 | -4/Zhirov | Installed Integrated Reactor, increased core energy generation (+10) 12458 | -4/Zhirov | Found Alien Artifact 12467 | -4/Zhirov | Identified exit to Proximity Caves 12468 | -4/Zhirov | Entered Proximity Caves 12492 | -3/Proximity Caves | Attracted the attention of an 0b10 checkpoint 12547 | -3/Proximity Caves | Spotter reported a threat 12644 | -3/Proximity Caves | Discovered exit to Research (range 11) 12660 | -3/Proximity Caves | Entered Research 12660 | -3/Research | Evolved 2 slots: Utility x2 12661 | -3/Research | Identified exit to Quarantine 12786 | -3/Research | Loaded intel: 5 recycling unit locations 12786 | -3/Research | Discovered exit to Quarantine (range 16) 12794 | -3/Research | Entered Quarantine 12813 | -3/Quarantine | Found Alien Artifact 12813 | -3/Quarantine | Identified Phase Redirector 12847 | -3/Quarantine | Identified exit to Research 12875 | -3/Quarantine | Found Alien Slashing Weapon 12875 | -3/Quarantine | Identified Sigix Broadsword 12995 | -3/Quarantine | Build established: Hacker-Ninja 13038 | -3/Quarantine | Cryocooling Duct disabled 13053 | -3/Quarantine | Ambient heat levels rising (+20) 13053 | -3/Quarantine | Non-combat units ordered to evacuate 13219 | -3/Quarantine | Repaired Cld. Impulse Thruster 13308 | -3/Quarantine | Entered Research 13308 | -2/Research | Evolved 2 slots: Utility x2 13410 | -2/Research | Discovered new exit (range 3) 13410 | -2/Research | Identified exit to Testing 13474 | -2/Research | Spotted B-90 Cyclops 13596 | -2/Research | Discovered new exit (range 10) 13598 | -2/Research | Identified exit to Access 13687 | -2/Research | Loaded intel: 5 recycling unit locations 13794 | -2/Research | Entered Testing 13831 | -2/Testing | Identified Transdimensional Reconstructor 13831 | -2/Testing | Warped through subspace 13868 | -2/Testing | Spotted Striker 13870 | -2/Testing | Protovariant out of control (PL-GEBYOZQ9GE) 13939 | -2/Testing | Found Prototype Processor 13944 | -2/Testing | Identified Exp. Core Analyzer 13966 | -2/Testing | Enhanced Grunt warped into view, answering call for help 13978 | -2/Testing | Enhanced Grunt warped into view, answering call for help 14061 | -2/Testing | Discovered exit to Access (range 8) 14100 | -2/Testing | Spotted Fortress 14112 | -2/Testing | Discovered new exit (range 6) 14112 | -2/Testing | Discovered new exit (range 7) 14113 | -2/Testing | Identified exit to Protoforge 14113 | -2/Testing | Entered Protoforge 14124 | -2/Protoforge | Superfortress began startup sequence 14139 | -2/Protoforge | Spotted Hotshot 14139 | -2/Protoforge | Spotted Hotshot 14203 | -2/Protoforge | Spotted AP7-3 14254 | -2/Protoforge | Spotted Hotshot 14254 | -2/Protoforge | Spotted Hotshot 14299 | -2/Protoforge | Spotted EXE-6 14299 | -2/Protoforge | Spotted EXE-6 14310 | -2/Protoforge | Spotted SKR-2 14310 | -2/Protoforge | Spotted SKR-2 14310 | -2/Protoforge | Spotted SKR-2 14319 | -2/Protoforge | UFD initiated attack on Protoforge (Readiness: High) 14319 | -2/Protoforge | Loaded intel: 3 recycling unit locations 14355 | -2/Protoforge | Optimus greeted in Protoforge 14359 | -2/Protoforge | Destroyed EXE-6 14362 | -2/Protoforge | Found Exp. Core Analyzer 14365 | -2/Protoforge | Found Prototype Device 14365 | -2/Protoforge | Identified Exp. Kinecellerator 14367 | -2/Protoforge | Found Prototype Ballistic Gun 14367 | -2/Protoforge | Identified Cep. XC Strikerail 14369 | -2/Protoforge | Found Cep. XC Strikerail 14375 | -2/Protoforge | Found Prototype Processor 14375 | -2/Protoforge | Identified Exp. Armor Integrity Analyzer 14389 | -2/Protoforge | Lost 3 allies 14394 | -2/Protoforge | Found UFD Drillbomb 14402 | -2/Protoforge | Spotted EXE-6 14402 | -2/Protoforge | Spotted EXE-6 14461 | -2/Protoforge | Spotted Hotshot 14461 | -2/Protoforge | Spotted Hotshot 14490 | -2/Protoforge | Installed UFD Drillbomb at designated target 14490 | -2/Protoforge | UFD reported confirmed Drillbomb installation 14494 | -2/Protoforge | Fabricated S-43 Plague? 14540 | -2/Protoforge | Build established: Hacker-Sprinter 14552 | -2/Protoforge | Met 7R-MNS 14563 | -2/Protoforge | Found UFD Drillbomb 14588 | -2/Protoforge | Spotted V680-j 14588 | -2/Protoforge | Spotted Hotshot 14590 | -2/Protoforge | Spotted Hotshot 14590 | -2/Protoforge | Spotted Hotshot 14590 | -2/Protoforge | UFD reported confirmed Drillbomb installation 14591 | -2/Protoforge | Spotted Hotshot 14614 | -2/Protoforge | Spotted Executioner 14617 | -2/Protoforge | Spotted Hotshot 14626 | -2/Protoforge | UFD reported confirmed Drillbomb installation 14649 | -2/Protoforge | Installed UFD Drillbomb at designated target 14649 | -2/Protoforge | UFD reported confirmed Drillbomb installation 14652 | -2/Protoforge | Spotted Striker 14652 | -2/Protoforge | Spotted Striker 14663 | -2/Protoforge | Found UFD Drillbomb 14675 | -2/Protoforge | Spotted Executioner 14676 | -2/Protoforge | Spotted Executioner 14676 | -2/Protoforge | Spotted Executioner 14676 | -2/Protoforge | Spotted Executioner 14694 | -2/Protoforge | Spotted Striker 14700 | -2/Protoforge | Spotted B-90 Cyclops 14703 | -2/Protoforge | Spotted Executioner 14703 | -2/Protoforge | Spotted Striker 14705 | -2/Protoforge | Discovered exit to Access (range 11) 14716 | -2/Protoforge | Installed UFD Drillbomb at designated target 14716 | -2/Protoforge | UFD reported confirmed Drillbomb installation 14717 | -2/Protoforge | Lost 5 allies 14718 | -2/Protoforge | Spotted Hotshot 14726 | -2/Protoforge | Spotted Overlord 14758 | -2/Protoforge | Lost 4 parts (1n2u1w) 14765 | -2/Protoforge | Found UFD Drillbomb 14799 | -2/Protoforge | Installed UFD Drillbomb at designated target 14799 | -2/Protoforge | UFD reported confirmed Drillbomb installation 14822 | -2/Protoforge | Found UFD Drillbomb 14835 | -2/Protoforge | Spotted Striker 14835 | -2/Protoforge | Spotted Striker 14835 | -2/Protoforge | Spotted Striker 14836 | -2/Protoforge | Spotted Executioner 14836 | -2/Protoforge | Spotted Executioner 14837 | -2/Protoforge | Spotted Hotshot 14871 | -2/Protoforge | Lost 8 allies 14890 | -2/Protoforge | Installed UFD Drillbomb at designated target 14890 | -2/Protoforge | UFD reported confirmed Drillbomb installation 14949 | -2/Protoforge | Spotted Striker 14949 | -2/Protoforge | Spotted Executioner 14950 | -2/Protoforge | Spotted Executioner 14954 | -2/Protoforge | Spotted Executioner 14957 | -2/Protoforge | Spotted Executioner 14957 | -2/Protoforge | Found UFD Drillbomb 14982 | -2/Protoforge | Spotted Striker 14985 | -2/Protoforge | Spotted Striker 15004 | -2/Protoforge | Build established: Scavenger-Sprinter 15036 | -2/Protoforge | Core integrity fell below 50% 15061 | -2/Protoforge | Lost 9 parts (6n3u) 15067 | -2/Protoforge | Core integrity fell below 20% 15074 | -2/Protoforge | Destroyed by G-73 Enforcer with Heavy Laser Last Messages --------------- 15073_ YU-283(E) destroyed. 15073_ Slug penetrates Wall. 15073_ N-04 Retriever collects Corrupted Ovr. Medium Treads. 15073_ N-04 Retriever collects Imp. Target Analyzer. 15073_ Critical hit (Destroy). 15073_ Exp. Armor Integrity Analyzer destroyed. 15073_ N-04 Retriever collects Ovr. Coil Gun. 15074_ Slug penetrates S7-TEZ(E). 15074_ Slug penetrates 02F64-D. 15074_ 02F64-D suffers critical hit (Destroy). 15074_ 02F64-D destroyed. 15074_ S7-TEZ(E) suffers critical hit (Destroy). 15074_ N-04 Retriever collects Ovr. Medium Treads. 15074_ N-04 Retriever collects Neutrino Core. 15074_ N-04 Retriever collects Mak. Medium Armor Plating. [Achievement: I Was Wrong!] Map ----- +----------------------------------------------------+ | ##????????????????????????????######?????###???? | | ##?????????????????????????????????????????????? | | ##???????###############???????????????????????? | | ##???????######################?????????######## | | ##???????## #########???????? | | #### ###### # ##???????" "" " | | ###""###### " " # """" ##?? ??"" " "" | | ####= " " " " # """" ##?? "" " "" """ | | ####=""R"" " " # """" ##?? """ "" | | "###!""""" # """" ##?? "" | | ####"" ####[ # ??#### " "" | | ### #####+###"#######+######## "" "" "" | | ### ##### % ##### # ## " | | ### ## ##### T + "## " "" " | | #####% # ### " #### # "## " " "" | | #### " ; ### # # ###### "## "" | | #??# " ## # # ;#######? T## "" | | #### #% ## ## # ###? "## """"" | | #"###" # ## # " ###?? "## " | | " % # # ; # " ###?? "## " " | | " %%"""""""" # " ###??? ## """"" " | | " "# % %"%" # ######### " ""% | | " %% " ; " ######### """" | | % != # !" ##?###??# """" | | ;;% % [m!% #*]"=#!=[ #### " | | ##"## ; % =*% !]!!%@[!*[#""## "" | | ## ; % %=%=%[!!!=!=[[[!# " | | ###";;; i% %Kp*K=%!!%%%!%n/ n " "% | | #" % % % % g % %!=%%E*!*[%%%E%%/ """"" " | | % % % % %%h%%% &%%*!%%%A%E=%nAn/%s"" "" " | | # ! %%%%%%sp%% %h[%=!!#!#!=%# %!# % " n "" | | #" %% %%;#;%;|*;%;;;#####]###### # sn "" " | | " %%%%; ; h ####?###### s "" " | | %% %m; # ##????????# !% % & | | ""%%%% ; #; " ##????????# !!=!!% =! % | | " % %; ; "" ##????????# !*[%! "%! | | #% %%& % ; """"" ##????????# =!==%!![! | | ="% % !; ; """""" "#????????# """![*!% " | | #" %%| ;# ; "#????????# " "" %""""" " | | " % [ # #;#"########"###????????# " %% " | | *% %% % " ; """" !/ ##????????# % " | | !" ### ""S"" ###????????# % | | ="%% ### "" "" """" ###????????# """"""" %"" | | %% + """" ##?????????# """ " " | | %" "%"""### """" ##?????????# " " | | ["%" # ### """" ##?????????# "" | | %" " ### ############ " "" " | | " " #### """" """" ############ "" "" | | *" " # ??## """" """" #### ## " """ | | "%### ??## """" """" #### " ## " " | +----------------------------------------------------+ Best States ------------- Heat Dissipation 75 Coolant Potential 100 Energy Generation 35 Energy Capacity 340 Matter Stores 300 Matter Capacity 300 Sight Range 23 Robot Scan Range 20 Terrain Scan Density 10 Jamming Range 14 Cloak Strength 4 Armor Coverage 150 Core Shielding 40 Propulsion Shielding 66 Phase Shifting 15 Evasion (%) 81 Targeting Accuracy 8 Melee Accuracy 8 Core Analysis 12 Armor Integrity Analysis 50 Recoil Reduction 3 Kinecelleration 66 Offensive Hacking 22 Defensive Hacking 14 Authchip Count 1 Item Schematics ----------------- Jamming Amplifier | -4/Factory | Hacked Q-thruster | -4/Factory | Hacked Assault Drone Bay | -4/Zhirov | Free Exp. Heat Sink | -4/Zhirov | Free Exp. Optical Array | -4/Zhirov | Free Imp. Arc Thrower | -4/Zhirov | Free Robot Schematics ------------------ None Fabricated ------------ S-43 Plague | x4 | -2/Protoforge | Preloaded Repaired ---------- Lgt. Armor Plating | 36% | -9/Materials Imp. Ion Engine | 24% | -8/Materials Shield Generator | 30% | -8/Materials Exp. Sensor Array | 62% | -8/Storage Hardlight Generator | 43% | -6/Factory Neutron Missile Launcher | 39% | -4/Factory Lgt. Neutrino Core | 17% | -4/Factory Adv. Cloaking Device | 64% | -4/Factory | Broken Cld. Impulse Thruster | 53% | -3/Quarantine Studied --------- Flight Unit | -9/Materials | Hacked Com. Wheel | -9/Materials | Hacked Alien Tech Used ----------------- Integrated Reactor Phase Redirector Sigix Broadsword Transdimensional Reconstructor Achievements -------------- Fine I'll Do It Myself I Was Wrong! We Are One Challenges ------------ None Game ------ Seed SixInterdictionReactor Manual? 0 Play Time 05:37:51 Cumulative 266.7 hours Start 2026.05.01 @ 20:47:00 End 2026.05.02 @ 16:03:48 Sessions 5 Manual Loads 0 Difficulty Rogue Special Mode None Game No. 143 Rogue 143 Adventurer 0 Explorer 0 Win Type - Total 9 Types 5/0/2/1/0/0/0/1/0/0 Lore% 75 Gallery% 66 Achievement% 58 Wizard Run 0 Options --------- Layout 2 ASCII 0 Keyboard 1 Movement Arrows Keybinds 0 Fullscreen 2 Font 24/Terminus Map View 50x44 Zoom Use 0% Tactical HUD 1 Map Filters NONE Filters NONE Steam 1 RUN: 83e7e242-9c1f-44bc-a249-113cd086ab27